Cogmind - Beta 16 @@@ ROGUE MODE // 2025.12.08 @ 16:36:31 Player: Mozco Result: Destroyed by Tracker with Linked Autogun Performance ------------- Evolutions (9) 4500 Regions Visited (30) 6000 Robots Destroyed (528) 2640 Value Destroyed (28914) 28914 Prototype IDs (103) 2060 Alien Tech Used (5) 1000 Bonus (18532) 18532 TOTAL SCORE: 63646 Bonus ------- Triggered High Security 500 High Alert Combat Kills 7643 Follower Combat Kills 2562 Network Hubs Disabled 600 Aligned with FarCom 300 Met Data Miner 300 Met Zhirov 300 Met Warlord at Base 500 MAIN.C Attacked Warlord 500 Warlord Defense Kills 1204 Built Enhanced Grunts 300 A7 Reached Mainframe 300 Met R17 at Cetus 500 Found Hidden Lab 3000 Pursued by Intercept 500 Friendly Fire -477 Cogmind --------- Core Integrity 0/1600 Matter 116/300 Energy 99/100 System Corruption 26% Temperature Cool (0) Movement Core (50) Location -1/Access Parts ------- > --- POWER (3) -------- (None) > --- PROPULSION (8) --- (None) > --- UTILITY (4) ------ Graphene Brace > --- WEAPON (10) ------ (None) > --- INVENTORY (5) ---- Light Quantum Reactor Advanced Heavy Treads Vortex Driver (30) Peak State ------------ > --- POWER ------------ Particle Reactor Vortex Chain Reactor > --- PROPULSION ------- Centrium Heavy Treads Centrium Heavy Treads Biometal Heavy Treads Advanced Heavy Siege Treads > --- UTILITY ---------- Experimental Heat Sink Huge Storage Unit Thermal Barrier Experimental Shield Generator > --- WEAPON ----------- Heavy Gatling Laser EMDS EMDS EMDS Potential Cannon Fusion Bomb Launcher > --- INVENTORY -------- Quantum Reactor Armored Heavy Treads Armored Heavy Treads Advanced Heavy Treads Advanced Coolant Injector Superbattery Matter Compressor Particle Accelerator Graphene Brace Thermal Barrier Experimental EM Shield Advanced Force Field Quantum Router Tachyon Dispersion Ray Heavy Gatling Laser Vortex Driver Vortex Driver Heavy Machine Gun Advanced KE Penetrator Fusion Bomb Launcher [Rating: 240] Favorites ----------- Power Quantum Reactor Engine Heavy Ion Engine Power Core Light Fission Core Reactor Quantum Reactor Propulsion Armored Medium Treads Treads Armored Medium Treads Leg Carbon-fiber Leg Wheel Armored Huge Wheel Utility Huge Storage Unit Device Advanced Cooling System Storage Huge Storage Unit Processor 0b10 Decoder Chip [Looter] Hackware Hacking Suite Protection Centrium Medium Armor Plating Artifact LC Capacitor Weapon Advanced KE Penetrator Energy Gun Heavy Gatling Laser Energy Cannon EMDS Ballistic Gun Advanced KE Penetrator Ballistic Cannon Compact Mass Driver Launcher Heavy Shock Bomb Launcher Special Weapon Improved Plasma Cutter Special Melee Weapon Datajack Build | -11 -10 -10 -10 -9 -8 -7 -7 -7 -7 -6 -6 -6 -6 -6 -6 -5 -5 -5 -5 -4 -4 -4 -4 -4 -3 -3 -3 -3 -2 -1 ------- Run | Yrd Mat Min Exi Min Mat Fac Low Low Dat Pro Fac Ext Cet Arc Hub Fac Upp Upp Zhi Pro Fac Upp Upp War Pro Res Arm Lab Res Acc Slots Evolved 18 | . . . . . 4 2 . . . . 2 . . . . 2 . . . . 2 . . . . 2 . . 2 2 Power 2 | . . . . . . . . . . . . . . . . 2 . . . . . . . . . . . . . . Propulsion 6 | . . . . . 2 2 . . . . . . . . . . . . . . . . . . . 1 . . 1 . Utility 2 | . . . . . 2 . . . . . . . . . . . . . . . . . . . . . . . . . Weapon 8 | . . . . . . . . . . . 2 . . . . . . . . . 2 . . . . 1 . . 1 2 Parts Attached 292 | 6 9 . 2 2 48 7 13 6 . 6 13 25 12 7 18 10 6 2 3 1 10 6 1 12 2 18 18 4 4 21 Power 27 | 1 2 . . . 1 1 3 . . . 1 2 1 . 2 3 2 . . . 2 . . 1 . 1 1 . . 3 Engine 10 | 1 2 . . . 1 1 2 . . . . 2 . . . 1 . . . . . . . . . . . . . . Core 5 | . . . . . . . 1 . . . 1 . . . 1 . 1 . . . 1 . . . . . . . . . Reactor 12 | . . . . . . . . . . . . . 1 . 1 2 1 . . . 1 . . 1 . 1 1 . . 3 Propulsion 67 | 2 . . . . 14 1 5 4 . 2 2 11 . 2 3 3 . . 1 . 2 . . 1 . 4 4 . 2 4 Treads 51 | 2 . . . . 12 1 3 . . 2 . 6 . 2 2 3 . . 1 . 2 . . 1 . 4 4 . 2 4 Leg 11 | . . . . . . . 2 4 . . 2 2 . . 1 . . . . . . . . . . . . . . . Wheel 5 | . . . . . 2 . . . . . . 3 . . . . . . . . . . . . . . . . . . Hover . | . . . . . . . . . . . . . . . . . . . . . . . . . . . . . . . Flight . | . . . . . . . . . . . . . . . . . . . . . . . . . . . . . . . Utility 100 | 1 3 . . 1 14 2 4 1 . 2 4 9 8 5 8 3 1 2 2 1 2 2 . 3 . 5 7 2 1 7 Device 59 | . . . . 1 9 . 1 1 . 1 1 4 4 5 6 3 1 1 1 1 . 2 . 3 . 4 4 . . 6 Storage 9 | 1 2 . . . 2 . . . . . . 2 . . 1 . . . . . . . . . . . 1 . . . Processor 6 | . . . . . . 1 . . . . 1 . . . . . . 1 . . 1 . . . . 1 . . 1 . Hackware 9 | . 1 . . . 1 1 . . . . 1 . . . 1 . . . . . 1 . . . . . 2 . . 1 Protection 16 | . . . . . 2 . 3 . . 1 1 3 4 . . . . . 1 . . . . . . . . 1 . . Artifact 1 | . . . . . . . . . . . . . . . . . . . . . . . . . . . . 1 . . Weapon 98 | 2 4 . 2 1 19 3 1 1 . 2 6 3 3 . 5 1 3 . . . 4 4 1 7 2 8 6 2 1 7 Energy Gun 30 | 2 1 . 1 . 11 . . . . . 2 1 . . . . . . . . . 2 1 1 . 3 2 1 . 2 Energy Cannon 13 | . 1 . . . 1 . . . . . . . . . 3 1 . . . . . . . 1 1 2 1 1 . 1 Ballistic Gun 32 | . 2 . . . 4 3 1 1 . 2 1 . 2 . 2 . 1 . . . 1 2 . 4 . 3 1 . 1 1 Ballistic Cannon 9 | . . . . . . . . . . . 3 . . . . . 1 . . . 1 . . 1 1 . . . . 2 Launcher 10 | . . . . 1 3 . . . . . . 1 . . . . . . . . 2 . . . . . 2 . . 1 Special Weapon 2 | . . . . . . . . . . . . . 1 . . . 1 . . . . . . . . . . . . . Impact Weapon . | . . . . . . . . . . . . . . . . . . . . . . . . . . . . . . . Slashing Weapon . | . . . . . . . . . . . . . . . . . . . . . . . . . . . . . . . Piercing Weapon . | . . . . . . . . . . . . . . . . . . . . . . . . . . . . . . . Special Melee Weapon 2 | . . . 1 . . . . . . . . 1 . . . . . . . . . . . . . . . . . . Unidentified Prototypes 41 | . 1 . . . 6 . . . . . 2 1 2 1 5 . . . 3 . 1 . . 5 . 2 3 7 . 2 Corrupted Parts 16 | . . . . 1 3 . . . . . . 1 5 2 4 . . . . . . . . . . . . . . . System Corruption 92 | . . . . 1 8 . . . . . . 2 30 20 31 . . . . . . . . . . . . . . . Parts Lost 86 | . 3 . . . 18 . 10 . . 12 2 4 . . 1 . 2 . . 2 2 . . . . 5 2 . . 23 Power 7 | . . . . . 1 . . . . . . . . . . . . . . 1 . . . . . . . . . 5 Propulsion 25 | . . . . . 6 . 5 . . 7 1 3 . . . . . . . . . . . . . 1 . . . 2 Utility 21 | . . . . . 3 . 4 . . 3 . 1 . . . . 2 . . . 1 . . . . 2 1 . . 4 Weapon 33 | . 3 . . . 8 . 1 . . 2 1 . . . 1 . . . . 1 1 . . . . 2 1 . . 12 Highest Loss Streak 14 | . 2 . . . 14 . 8 . . 12 1 2 . . 1 . 2 . . 1 1 . . . . 1 1 . . 7 To Critical Strikes 3 | . . . . . . . 1 . . . . . . . . . . . . . . . . . . 1 . . . 1 Average Backups 19 | . 10 19 19 19 20 23 22 24 25 21 21 22 22 20 20 20 18 19 18 19 20 19 19 19 20 19 19 19 19 17 Power 1 | . 3 3 3 3 1 1 2 3 3 2 2 1 . 1 1 1 1 2 2 2 1 1 1 1 1 1 1 1 1 1 Propulsion 3 | . . 2 2 2 1 3 1 3 4 2 . 1 6 8 6 3 3 4 4 3 2 3 3 3 3 3 3 3 2 4 Utility 8 | . 4 5 5 5 6 7 9 8 8 8 10 11 9 6 7 10 9 8 9 11 12 11 10 11 11 9 8 8 8 7 Weapon 5 | . 2 8 9 8 8 9 7 7 8 7 6 6 4 4 3 4 3 3 2 3 3 3 5 4 5 5 6 7 8 3 Tool/Special . | . . . . . . . . . . . . . . . . . . . . . . . . . . . . . . . Unused Backups 45 | . 1 3 . . 5 3 . 1 . . 4 3 4 . 2 1 1 1 1 . 1 3 . . . 3 1 . 2 5 Power 9 | . 1 2 . . 1 . . . . . . . 1 . 1 . . . . . . 1 . . . . . . . 2 Propulsion 4 | . . . . . . . . . . . . . 1 . 1 . . . 1 . . . . . . . . . . 1 Utility 18 | . . 1 . . 3 . . 1 . . 2 1 2 . . 1 1 . . . 1 2 . . . 2 . . . 1 Weapon 14 | . . . . . 1 3 . . . . 2 2 . . . . . 1 . . . . . . . 1 1 . 2 1 Tool/Special . | . . . . . . . . . . . . . . . . . . . . . . . . . . . . . . . Average Slot Usage (%) 85 | . 96 100 91 100 88 99 94 98 100 81 87 93 79 75 75 76 92 94 74 90 83 88 89 86 84 80 83 77 76 67 Engine 2 | . 14 14 14 14 8 7 6 . . . . 3 1 . . . . . . . . . . . . . . . . . Core 1 | . . . . . . . . 7 7 7 6 2 . . . . 1 5 5 5 8 5 5 2 . . . . . . Reactor 6 | . . . . . . . . . . . . . 4 6 5 16 14 11 11 10 6 10 10 10 10 8 9 9 8 10 Treads 21 | . 27 28 28 28 22 45 34 18 15 20 15 11 . . 1 18 29 29 29 29 22 21 21 21 21 22 22 19 20 15 Leg 3 | . . . . . . . 8 26 30 8 15 18 . . . . . . . . . . . . . . . . . . Wheel 2 | . . . . . 7 . . . . . . 3 20 20 18 2 . . . . . . . . . . . . . . Device 10 | . . . . . 14 13 9 15 15 15 12 12 4 9 8 9 12 11 11 11 5 11 15 15 15 13 11 12 12 11 Storage 6 | . 14 14 14 14 9 7 7 7 7 7 6 6 11 6 8 6 5 5 5 5 6 5 5 5 5 4 4 4 4 3 Hackware 1 | . 11 14 14 13 . . . . . . . . . . . . . . . . . . . . . . 1 . . . Protection 3 | . . . . . 7 7 9 7 7 5 3 4 9 5 6 5 2 5 5 4 5 3 . . . . . . . . Energy Gun 4 | . 2 . . 3 8 9 . . . . 3 9 4 6 . . . . . . . 3 13 12 5 2 11 15 13 7 Energy Cannon 3 | . 12 14 5 . . . . . . . . . . . 2 9 . . 1 . 4 . . . 1 4 5 3 4 6 Ballistic Gun 11 | . 12 14 5 14 8 5 14 15 15 14 11 6 13 18 17 3 12 17 1 13 6 10 15 15 21 18 10 6 7 7 Ballistic Cannon 1 | . . . . . . . . . . . 7 8 . 1 . . 4 5 . 5 7 8 1 . . . . . . 1 Launcher 1 | . . . . 10 . . . . . . . . 5 . . . . . . . 5 6 . 1 3 1 2 4 4 1 Peak Build Rating 240 | 6 13 14 15 14 38 40 51 50 50 52 63 78 105 102 136 153 142 139 136 140 166 158 156 167 166 190 190 200 207 240 Average Rating 111 | 4 9 13 13 13 28 39 44 48 50 43 55 65 90 91 105 146 137 138 112 131 152 154 154 160 162 176 179 185 204 204 On Entrance 97 | . 6 13 14 14 12 37 40 50 50 50 42 61 78 101 101 136 146 139 136 136 121 147 156 154 162 162 180 175 192 207 Avg Prop Armor Cover (%) 8 | . . . . . 8 . 4 11 12 12 8 9 . 11 9 10 6 6 8 6 . . . . . 8 7 . . 6 Naked Turns 61 | . . . . . . . . . . . . . . . . . . . . . . . . . . . . . . 61 Heaviest Build 240 | 12 53 53 53 54 112 116 118 110 103 107 124 136 145 145 152 189 169 161 161 161 185 181 170 198 198 219 201 213 203 240 Greatest Support 315 | 40 40 40 40 40 80 120 120 85 65 73 73 84 84 84 84 214 194 114 114 111 214 214 214 214 194 232 267 267 315 315 Greatest Overweight (x) 15 | . 1 1 1 1 15 . 5 5 1 1 2 6 2 5 5 6 1 1 1 1 . . . . 1 1 1 . . 1 Average Overweight (x) . | . . 1 1 1 1 . . 1 1 1 1 1 1 2 1 1 . 1 1 1 . . . . . . . . . . Largest Inventory Capacity 25 | 8 20 20 20 20 25 25 25 25 25 25 25 25 25 25 25 25 25 25 25 25 25 25 25 25 25 25 25 25 25 25 Average Capacity 24 | 7 13 20 20 20 22 25 25 25 25 25 25 25 25 25 25 25 25 25 25 25 25 25 25 25 25 25 25 25 25 24 Most Carried 25 | 2 19 20 20 19 25 25 25 25 25 25 25 25 25 25 25 25 25 25 25 25 25 25 25 25 25 25 25 25 25 25 Average Carried 23 | 1 10 19 19 18 20 23 22 24 25 21 24 24 24 24 24 23 24 24 24 24 24 24 24 24 25 24 24 24 24 22 Final Capacity 25 | 8 20 20 20 20 25 25 25 25 25 25 25 25 25 25 25 25 25 25 25 25 25 25 25 25 25 25 25 25 25 25 Final Carried 25 | 2 19 20 19 18 24 25 22 25 25 25 25 25 25 25 24 25 25 25 25 25 25 25 25 25 25 24 25 25 25 23 Class Distribution -------------------- 35% | Scavenger-Executioner 16% | Scavenger-Tank 16% | Mutant 13% | Scavenger-Mutant 3% | Derelict-Skirmisher 3% | Commander-Tank Dominant Class ---------------- Mutant | -10/Materials Mutant | -10/Mines Mutant | -10/Exiles Mutant | -9/Mines Scavenger-Mutant | -8/Materials Scavenger-Mutant | -7/Factory Derelict-Mutant | -7/Lower Caves Scavenger-Mutant | -7/Lower Caves Scavenger-Mutant | -7/Data Miner Mutant | -6/Proximity Caves Derelict-Skirmisher | -6/Factory Scavenger-Skirmisher | -6/Extension Commander-Tank | -6/Cetus Commander-Skirmisher | -6/Archives Scavenger-Tank | -6/Hub_04(d) Scavenger-Tank | -5/Factory Scavenger-Tank | -5/Upper Caves Scavenger-Tank | -5/Upper Caves Scavenger-Mutant | -5/Zhirov Scavenger-Tank | -4/Proximity Caves Scavenger-Executioner | -4/Factory Scavenger-Executioner | -4/Upper Caves Scavenger-Executioner | -4/Upper Caves Scavenger-Executioner | -4/Warlord Scavenger-Executioner | -3/Proximity Caves Scavenger-Executioner | -3/Research Scavenger-Executioner | -3/Armory Scavenger-Executioner | -3/Lab Machinist-Executioner | -2/Research Scavenger-Executioner | -1/Access Resources | -11 -10 -10 -10 -9 -8 -7 -7 -7 -7 -6 -6 -6 -6 -6 -6 -5 -5 -5 -5 -4 -4 -4 -4 -4 -3 -3 -3 -3 -2 -1 ----------- Run | Yrd Mat Min Exi Min Mat Fac Low Low Dat Pro Fac Ext Cet Arc Hub Fac Upp Upp Zhi Pro Fac Upp Upp War Pro Res Arm Lab Res Acc Matter Collected 21491 | 190 368 150 120 . 1504 40 862 425 . 418 476 1212 275 1124 1388 1142 764 384 95 735 688 717 340 748 649 2873 1196 170 198 2240 Remotely . | . . . . . . . . . . . . . . . . . . . . . . . . . . . . . . . Salvage Created 27227 | . 479 84 . 12 1871 315 301 681 . 311 340 682 628 357 1421 1780 396 591 102 343 900 889 690 610 1177 4202 2281 . 164 5620 Parts 1152 | . 32 1 . 4 103 11 18 32 . 23 13 37 23 33 80 70 19 31 3 14 27 20 24 26 35 186 65 . 10 212 Haulers Intercepted 16 | . 2 . . . 6 2 . . . . 1 . . . . . . . . . 1 . . . . 2 . . . 2 Recyclers Shooed 9 | . . . . . 1 . . . . . . . . . . 1 . . . . . . . . . 6 . . . 1 Parts Field Recycled . | . . . . . . . . . . . . . . . . . . . . . . . . . . . . . . . Retrieved Matter . | . . . . . . . . . . . . . . . . . . . . . . . . . . . . . . . Parts Self-Destructed 217 | . . . . . . . 31 31 . 21 . . . . . . 19 35 . 13 . 12 33 . 22 . . . . . Prevented 30 | . . . . . . . 1 1 . . . . . . . . . 2 3 . . 11 . . 12 . . . . . Parts Restored . | . . . . . . . . . . . . . . . . . . . . . . . . . . . . . . . Kills | -11 -10 -10 -10 -9 -8 -7 -7 -7 -7 -6 -6 -6 -6 -6 -6 -5 -5 -5 -5 -4 -4 -4 -4 -4 -3 -3 -3 -3 -2 -1 ------- Run | Yrd Mat Min Exi Min Mat Fac Low Low Dat Pro Fac Ext Cet Arc Hub Fac Upp Upp Zhi Pro Fac Upp Upp War Pro Res Arm Lab Res Acc Combat Hostiles Destroyed 424 | . 6 2 . 3 35 1 7 14 . 5 8 11 7 . 17 28 10 12 . 6 13 14 17 8 17 50 38 . 3 92 Melee 1 | . . . . . . . . . . . . . . . . . . . . . . . . . . . . . . 1 Guns 244 | . 4 . . . 19 1 6 14 . 5 7 4 . . 14 9 7 11 . 4 7 4 16 7 12 37 30 . 2 24 Cannons 74 | . 1 1 . . . . . . . . 1 7 . . 1 12 3 1 . 2 5 6 1 . . 4 6 . . 23 AOE 63 | . 1 . . 3 16 . 1 . . . . . 3 . . 2 . . . . 1 . . 1 3 2 1 . 1 28 Classes Destroyed 23 | . 7 . . . 5 1 1 . . 2 . 1 . . 1 . . . . . . . . 1 . 1 2 . . 1 Worker 13 | . 2 . . . 1 . . . . . . . . . . 3 . . . . . . . . . 3 . . . 4 Builder 15 | . . . . . 4 . . . . . . 1 . . . . . . . . . . . . . 4 . . . 6 Tunneler 3 | . . . . . . . . . . . . . . . . . . . . . . . . . . 2 . . 1 . Hauler 16 | . 2 . . . 6 2 . . . . 1 . . . . . . . . . 1 . . . . 2 . . . 2 Recycler 18 | . 1 . . . 4 1 . . . . . 1 . . 1 1 . . . . 2 . . . . 3 . . . 4 Carrier 1 | . . . . . . . . . . . . . . . . . . . . . . . . . . . . . . 1 Mechanic 5 | . . . . . . . . . . . . 1 . . . . . . . . . . . . . 1 1 . . 2 Operator 13 | . 1 . . . . 1 . . . . . . . 9 . . . . . . . . . . . 1 . . . 1 Watcher 16 | . 2 . . . 2 1 . . . . . . 2 . . . . . . . . . . . . 2 3 . . 4 Swarmer 85 | . 3 . . 3 8 . 5 1 . 4 4 . . . . 5 4 5 . 1 2 . 12 . 3 15 . . . 10 Grunt 142 | . 3 2 . . 18 . . 10 . . 3 2 . . 6 14 . 4 . 2 3 8 3 4 8 11 13 . . 28 Brawler 10 | . . . . . 1 . . . . . . . . . 1 . . . . . . . . . . 3 1 . . 4 Duelist 21 | . . . . . . . 1 2 . . . . . . 1 . . . . . . 3 . . . 1 7 . . 6 Protector 4 | . . . . . . . . . . . . . . . 2 . . . . . . . . 1 . . . . . 1 Sentry 39 | . . . . . 6 . 1 1 . . . 7 . . 2 3 1 1 . . 3 1 2 . 1 6 2 . . 2 Demolisher 1 | . . . . . . . . . . . . . . . . . . . . . . . . . . . 1 . . . Specialist 3 | . . . . . . . . . . . . . . . . . . . . . . . . . . . 3 . . . Hunter 34 | . . . . . 1 . . . . . . 2 . . . 4 2 . . 2 . 2 . 2 4 6 1 . 3 5 Programmer 54 | . . . . . . 1 . . . . 1 . . . . 2 2 2 . 1 5 . . . . 8 10 . . 22 Heavy 1 | . . . . . 1 . . . . . . . . . . . . . . . . . . . . . . . . . Behemoth 3 | . . . . . . . . . . 1 . . . . . . 1 . . . . . . . 1 . . . . . Cetus Guard 7 | . . . . . . . . . . . . . 7 . . . . . . . . . . . . . . . . . Enhanced Grunt 1 | . . . . . . . . . . . . . . . 1 . . . . . . . . . . . . . . . Lightning 5 | . . . . . . . . . . . . . . . 5 . . . . . . . . . . . . . . . Tracker 7 | . . . . . . . . . . . . . . . . . . . . . . . . . . . . . . 7 Combat Programmer 7 | . . . . . . . . . . . . . . . . . . . . . . . . . . . . . . 7 Striker 2 | . . . . . . . . . . . . . . . . . . . . . . . . 1 . . . . 1 . Samaritan 2 | . . . . . . . . . . 2 . . . . . . . . . . . . . . . . . . . . Thug 1 | . . . . . . . . . . . . . . . . . . . . . . . . 1 . . . . . . Butcher 1 | . . . . . . . . . . . . . 1 . . . . . . . . . . . . . . . . . Best Kill Streak 14 | . 3 2 . 3 8 1 4 2 . 4 4 4 5 3 5 7 4 4 . 3 3 7 8 3 5 9 9 . 3 14 Combat Bots Only 12 | . 3 2 . 3 7 1 4 2 . 4 4 3 4 . 5 5 4 4 . 3 3 7 8 3 5 8 8 . 3 12 Max Kills in Single Turn 3 | . 2 1 . 2 3 1 1 2 . 1 1 1 3 1 2 2 1 2 . 1 2 2 2 1 2 2 1 . 1 3 Gunslinging 1 | . . . . . . . . 1 . . . . . . 1 1 . 1 . . . . 1 . . 1 . . . 1 Exploded 3 | . 1 . . 2 3 . 1 . . . . . 2 . . 2 . . . . 1 . . 1 2 1 1 . 1 3 Melee 1 | . . . . . . . . . . . . . . . . . . . . . . . . . . . . . . 1 Uniques/NPCs Destroyed 1 | . . . . . . . . . . . . . . . . . . . . . . . . . . . . 1 . . A5 (-3/Lab) Combat | -11 -10 -10 -10 -9 -8 -7 -7 -7 -7 -6 -6 -6 -6 -6 -6 -5 -5 -5 -5 -4 -4 -4 -4 -4 -3 -3 -3 -3 -2 -1 -------- Run | Yrd Mat Min Exi Min Mat Fac Low Low Dat Pro Fac Ext Cet Arc Hub Fac Upp Upp Zhi Pro Fac Upp Upp War Pro Res Arm Lab Res Acc Hostile Shots Fired 3086 | . 59 10 . 4 221 14 154 107 . 65 30 190 19 2 71 86 108 37 . 75 56 56 91 56 119 446 236 8 22 744 Missed 1038 | . 13 1 . 2 58 3 39 36 . 19 7 84 7 1 17 26 38 17 . 30 21 26 47 34 68 179 56 3 6 200 Hits 2048 | . 46 9 . 2 163 11 115 71 . 46 23 106 12 1 54 60 70 20 . 45 35 30 44 22 51 267 180 5 16 544 Melee 90 | . . . . . . . 10 5 . . . . . . . . . . . . . 3 . . . 2 10 . 4 56 Projectile 1958 | . 46 9 . 2 163 11 105 66 . 46 23 106 12 1 54 60 70 20 . 45 35 27 44 22 51 265 170 5 12 488 Critical Strikes 125 | . 1 . . . 13 . 6 4 . 1 2 4 1 . 6 4 . 3 . 3 3 2 1 3 4 12 11 . 2 39 Actively Blocked 9 | . . . . . 2 . 1 4 . 1 . . . . . . . . . . 1 . . . . . . . . . Part Disruptions 13 | . . . . . . . 1 . . . . . . . 3 . . . . . . . . . . 2 1 . . 6 Damage Taken 27575 | . 555 120 . 14 2818 161 1886 783 . 1146 374 1121 196 36 649 674 1085 343 . 750 823 467 398 308 440 2551 1292 141 362 8082 Core 3374 | . 82 48 . . 453 28 192 101 . 113 15 52 26 . 32 15 43 15 . 57 . 9 15 21 16 186 80 12 144 1619 Absorbed by Shields 9090 | . . . . . 116 . 68 256 . 60 . 126 144 12 120 205 335 . . . . 275 359 320 461 1831 1327 56 131 2888 Reduced by Siege Mode 36 | . . . . . . . . . . . . . . . . . . . . . . . . . . . 36 . . . Redirected to Shielding 98 | . . . . . 13 . 85 . . . . . . . . . . . . . . . . . . . . . . . Ignored by Resistances 7403 | . . . . . . . 169 . . 27 6 87 . . 894 122 . . . 36 16 . . 85 173 710 1337 99 . 3642 Regen/Repaired (Parts) 2300 | . 200 . . . 137 . . . . . . . . . . 523 . . . . 543 . . 278 . . 619 . . . Core Remaining (%) 72 | 100 . . . 48 17 . . . . 38 . . . . 85 . . . . 87 . . . . 94 . . 97 90 . Volleys Fired 1232 | . 54 7 . 3 123 26 33 44 . 31 27 40 9 57 67 46 27 17 4 17 31 34 23 27 33 122 110 30 12 178 Largest 7 | . 2 2 . 2 2 2 2 2 . 2 4 4 2 4 4 4 4 4 1 4 4 6 6 6 6 7 6 5 5 7 Hottest 475 | . 80 80 . 60 100 100 66 61 . 61 177 260 80 183 138 195 159 159 70 159 210 357 358 329 327 399 455 380 345 475 Shots Fired 3572 | . 100 15 . 5 226 41 62 88 . 62 78 123 17 133 170 105 76 61 4 59 95 111 118 124 149 537 375 70 40 528 Gun 2821 | . 67 7 . 2 207 35 58 88 . 62 49 76 3 133 147 45 56 51 . 42 40 60 113 121 141 473 322 48 35 340 Cannon 652 | . 33 8 . . . . . . . . 29 47 1 . 23 60 20 10 4 17 55 40 5 . 2 54 49 22 5 168 Launcher 99 | . . . . 3 19 6 4 . . . . . 13 . . . . . . . . 11 . 3 6 10 4 . . 20 Special . | . . . . . . . . . . . . . . . . . . . . . . . . . . . . . . . Kinetic 2328 | . 43 7 . 1 114 14 58 88 . 62 72 79 3 117 147 45 76 61 . 59 92 76 73 86 116 411 157 28 14 229 Thermal 733 | . 33 8 . . 38 5 . . . . 6 44 1 16 . 4 . . . . . 24 45 35 25 49 161 42 19 178 Explosive 46 | . . . . 3 19 . . . . . . . . . . . . . . . . . . . . . 4 . . 20 Electromagnetic 449 | . 24 . . 1 55 22 4 . . . . . 13 . 23 56 . . 4 . 3 11 . 3 6 75 53 . 7 89 Entropic 16 | . . . . . . . . . . . . . . . . . . . . . . . . . 2 2 . . . 12 Robot Hit Streak 19 | . 7 1 . 3 14 7 11 12 . 12 6 13 . 12 7 10 6 6 6 7 9 11 8 13 19 14 18 6 5 14 Robot Miss Streak 13 | . 6 2 . 1 7 7 3 3 . 6 6 8 3 10 8 3 6 5 . 4 3 4 4 3 5 7 7 5 2 13 Penetration Max 2 | . . . . . . . 1 1 . . . . . . 2 1 . 1 . 1 1 2 . 1 1 2 1 . . 1 Secondary Targets 45 | . . . . . 2 . 3 1 . . . . . . 3 4 . 1 . . . . 6 2 2 10 4 . . 7 Max Gunslinging Chain 1 | . . . . . 1 . 1 1 . . . . . . 1 1 . 1 . . . . 1 1 1 1 1 . . 1 Shots Hit Robots 2063 | . 58 5 4 2 141 19 36 57 . 43 41 99 2 80 85 63 38 20 4 31 58 63 55 85 88 277 239 39 26 305 Core Hits 1157 | . 21 1 . 5 106 9 27 31 . 15 24 43 25 30 43 34 18 16 . 10 22 24 26 38 43 145 139 11 11 240 Critical Kills 53 | . . 1 . . . 1 2 . . 1 . . . 7 11 3 1 7 . 1 6 . . . 1 2 . . . 9 Critical Parts Destroyed 74 | . . . . . 1 2 10 1 . 3 . 1 . 14 9 1 3 2 . 4 2 1 . 1 2 10 . . . 7 Critical Strikes 174 | . . 1 . . 1 3 15 1 . 5 . 2 . 21 22 10 7 9 . 5 13 4 1 2 5 16 1 . . 30 Burn 5 | . . . . . . . . . . . . 1 . . . . . . . . . . 1 . 1 2 . . . . Meltdown 4 | . . 1 . . . . . . . . . . . . . . . . . . . . . . . . . . . 3 Destroy 131 | . . . . . 1 3 15 1 . 5 . 1 . 21 21 4 5 9 . 5 8 1 . 2 3 12 . . . 14 Blast 10 | . . . . . . . . . . . . . . . . . 2 . . . 3 3 . . . . . . . 2 Corrupt 19 | . . . . . . . . . . . . . . . 1 6 . . . . 2 . . . . 2 1 . . 7 Sunder 5 | . . . . . . . . . . . . . . . . . . . . . . . . . 1 . . . . 4 Melee Attacks 26 | . . . 4 . . . . . . . . 20 2 . . . . . . . . . . . . . . . . . Impact . | . . . . . . . . . . . . . . . . . . . . . . . . . . . . . . . Slashing . | . . . . . . . . . . . . . . . . . . . . . . . . . . . . . . . Piercing . | . . . . . . . . . . . . . . . . . . . . . . . . . . . . . . . Sneak Attacks 26 | . . . 4 . . . . . . . . 20 2 . . . . . . . . . . . . . . . . . Combat Hostiles . | . . . . . . . . . . . . . . . . . . . . . . . . . . . . . . . Follow-up Attacks . | . . . . . . . . . . . . . . . . . . . . . . . . . . . . . . . Damage Inflicted 77618 | . 859 96 . 167 4624 407 608 1087 . 694 949 2167 1503 831 2261 3073 1230 559 132 826 2354 2509 1473 3193 3084 9534 8667 759 1330 22642 Guns 40597 | . 412 33 . 31 2600 385 412 1087 . 694 466 1190 . 831 1615 886 749 494 . 489 737 904 1386 2405 2048 6736 6452 660 589 6306 Cannons 20066 | . 422 53 . . . . . . . . 483 977 . . 646 2076 481 65 132 337 1326 1019 87 . 155 1628 971 99 233 8876 Explosions 16674 | . 24 . . 136 2024 22 196 . . . . . 1503 . . 111 . . . . 212 586 . 788 881 1058 1244 . 508 7381 Melee . | . . . . . . . . . . . . . . . . . . . . . . . . . . . . . . . Ramming 281 | . 1 10 . . . . . . . . . . . . . . . . . . 79 . . . . 112 . . . 79 Kinetic 32077 | . 202 33 . 15 1579 45 412 1087 . 694 901 1414 . 565 1615 886 1230 559 . 826 1903 1573 797 1846 1552 5850 2346 270 169 3708 Thermal 23591 | . 446 53 . . 721 . . . . . 48 753 498 266 . 149 . . . . 212 350 676 1024 688 757 4075 489 1085 11301 Explosive 6663 | . . . . 136 1634 . . . . . . . . . . . . . . . . . . . . . 1177 . . 3716 Electromagnetic 14024 | . 210 . . 16 690 362 196 . . . . . 1005 . 646 2038 . . 132 . 160 586 . 323 689 2654 1069 . 76 3172 Impact . | . . . . . . . . . . . . . . . . . . . . . . . . . . . . . . . Slashing . | . . . . . . . . . . . . . . . . . . . . . . . . . . . . . . . Piercing . | . . . . . . . . . . . . . . . . . . . . . . . . . . . . . . . Entropic 982 | . . . . . . . . . . . . . . . . . . . . . . . . . 155 161 . . . 666 Highest Corruption 31 | . 1 1 1 2 5 2 3 . . . . 2 20 15 31 . 1 2 2 2 . . . 2 2 5 6 2 . 26 Average Corruption 3 | . 1 1 1 1 1 1 2 . . . . 1 14 7 11 . 1 1 2 2 . . . 1 2 3 4 2 . 9 Corruption Purged 71 | . . . . . 10 . 3 . . . . 2 15 33 2 . . . . . . . . . . . 6 . . . Corruption Blocked 1 | . . . . . . . . . . . . . . . . . . . . . 1 . . . . . . . . . Effects 321 | . 8 7 8 3 20 . 9 . . . . . 13 22 29 . 5 7 7 17 . . . . 13 32 41 9 . 71 Message Errors 75 | . 2 . 1 2 4 . 2 . . . . . 1 7 13 . 1 . 3 2 . . . . 6 9 6 3 . 13 Matter Fused 78 | . 2 4 3 . 6 . 3 . . . . . 3 7 3 . 1 1 2 6 . . . . 1 3 10 5 . 18 Heat Flow Errors 23 | . . . 1 . 2 . 2 . . . . . . 1 1 . . 1 . 1 . . . . . 3 7 . . 4 Energy Discharges 54 | . 3 2 2 . 5 . . . . . . . 3 1 5 . 2 2 . . . . . . 3 6 9 . . 11 Parts Rejected 2 | . . . . . . . . . . . . . . . . . . . . . . . . . . . . . . 2 Parts Fused 5 | . . . . . . . . . . . . . . 2 . . . . . 1 . . . . 1 . . . . 1 Data Loss (minor) 25 | . . . 1 . 1 . . . . . . . 1 3 2 . 1 . 1 3 . . . . 1 2 2 . . 7 Data Loss (major) 12 | . 1 . . . . . . . . . . . . 1 1 . . 1 . . . . . . 1 1 2 . . 4 Misfires 15 | . . 1 . 1 1 . 2 . . . . . 3 . . . . 1 . 1 . . . . . 1 1 . . 3 Alerts 12 | . . . . . . . . . . . . . 1 . 1 . . . 1 2 . . . . . 2 2 1 . 2 Misdirections 2 | . . . . . . . . . . . . . . . . . . . . . . . . . . . . . . 2 Weapon Failures 18 | . . . . . 1 . . . . . . . 1 . 3 . . 1 . 1 . . . . . 5 2 . . 4 Overload Shots . | . . . . . . . . . . . . . . . . . . . . . . . . . . . . . . . Overflow Damage 1949 | . . . . . 7 . . . . . . . 5 . 20 96 . . 3 61 76 59 . . 61 216 92 . . 1253 Projectiles 1302 | . . . . . . . . . . . . . . . 20 96 . . 3 61 4 59 . . . 190 61 . . 808 Explosions 598 | . . . . . 7 . . . . . . . 5 . . . . . . . 42 . . . 61 7 31 . . 445 Melee 49 | . . . . . . . . . . . . . . . . . . . . . 30 . . . . 19 . . . . Knockbacks 48 | . . . . . . . . . . . 7 11 . . . . 2 1 . 4 8 6 . . . 1 . . . 8 Impact 1 | . . . . . . . . . . . . . . . . . . . . . . . . . . 1 . . . . Kinetic 47 | . . . . . . . . . . . 7 11 . . . . 2 1 . 4 8 6 . . . . . . . 8 Secondary . | . . . . . . . . . . . . . . . . . . . . . . . . . . . . . . . Self-Inflicted Damage 1025 | . . . . . 67 . 25 . . . . . 20 . . . . . . . 39 71 . 29 . 64 257 . . 453 Shots 25 | . . . . . 2 . 1 . . . . . 1 . . . . . . . 1 3 . 1 . 2 5 . . 9 Rammed 12 | . 1 2 . . . . . . . . . . . . . . . . . . 2 . . . . 4 . . . 3 Targets Rammed 13 | . 1 2 . . . . . . . . . . . . . . . . . . 2 . . . . 4 . . . 4 Kicked . | . . . . . . . . . . . . . . . . . . . . . . . . . . . . . . . Crushed 1 | . . . . . . . . . . . . . . . . . . . . . . . . . . . . . . 1 Highest Temperature 603 | . 248 216 220 3 284 90 195 35 . 30 266 255 36 450 356 199 482 373 . 209 12 388 483 184 114 603 443 353 144 562 Average Temperature 100 | . 64 106 111 2 79 29 46 10 . 8 122 98 15 142 111 75 118 122 . 123 5 143 162 68 23 152 146 180 57 124 Received Heat Transfer 3888 | . 303 69 . . 1013 . 188 317 . 166 117 225 4 6 149 12 36 36 . 33 132 72 73 124 75 154 269 . . 315 Effects 42 | . . . . . . . . . . . . 2 . . 2 . 4 2 . . . 3 4 . . 6 11 . . 8 Shutdowns 17 | . . . . . . . . . . . . . . . . . 3 2 . . . 1 1 . . 3 4 . . 3 Energy Bleed 8 | . . . . . . . . . . . . 1 . . 2 . . . . . . 1 . . . 1 2 . . 1 Interference 8 | . . . . . . . . . . . . 1 . . . . . . . . . . 3 . . . 1 . . 3 Matter Decay 3 | . . . . . . . . . . . . . . . . . 1 . . . . . . . . 1 . . . 1 Short Circuit 1 | . . . . . . . . . . . . . . . . . . . . . . 1 . . . . . . . . Damage (minor) 5 | . . . . . . . . . . . . . . . . . . . . . . . . . . 1 4 . . . Siege Activations 2 | . . . . . . . . . . . . . . . . . 1 . . . . . . . . . 1 . . . Total Turns 74 | . . . . . . . . . . . . . . . . . 12 . . . . . . . . . 62 . . . Longest Duration 62 | . . . . . . . . . . . . . . . . . 12 . . . . . . . . . 62 . . . Martial Activations . | . . . . . . . . . . . . . . . . . . . . . . . . . . . . . . . Shielding Activations . | . . . . . . . . . . . . . . . . . . . . . . . . . . . . . . . Robots Disrupted 2 | . . . . . . . . . . . . . . . . 1 . . . . . . . . . . . . . 1 Combat Hostiles 2 | . . . . . . . . . . . . . . . . 1 . . . . . . . . . . . . . 1 Robots Corrupted 43 | . . . . . . 1 . . . . . . 4 . 3 5 . . 1 . 2 4 . . 2 8 1 . . 12 Combat Hostiles 37 | . . . . . . . . . . . . . 4 . 2 5 . . 1 . . 4 . . 2 7 1 . . 11 Parts Fried 87 | . . . . . 2 3 . . . . . . 6 . 4 16 . . . . 4 6 . 1 2 17 3 . 1 22 Impact Corruptions 3 | . . . . . . . . . . . . . . . . . . . . . 2 . . . . 1 . . . . Robots Melted 5 | . . 1 . . . . . . . . . . . . . . . . . . . . . . . . . . . 4 Combat Hostiles 5 | . . 1 . . . . . . . . . . . . . . . . . . . . . . . . . . . 4 Parts Melted 33 | . 1 2 . . . . 1 . . . . . . . . . . . . . . . 4 1 2 . 9 . 1 12 Heat Transferred 27050 | . 888 111 . . 916 . . . . . 100 1518 400 407 . 100 . . . . 150 444 1090 1259 927 1110 5677 878 1130 9945 Parts Sabotaged 3 | . . . . . . . . . . . . . . . . . . . . . . . . . . 1 . . . 2 Parts Stolen . | . . . . . . . . . . . . . . . . . . . . . . . . . . . . . . . Parts Stripped . | . . . . . . . . . . . . . . . . . . . . . . . . . . . . . . . Power Chain Reactions 16 | . 1 . . . 4 . . . . . . . 3 . . 1 . . . . . . . 4 1 . 1 . . 1 Alert | -11 -10 -10 -10 -9 -8 -7 -7 -7 -7 -6 -6 -6 -6 -6 -6 -5 -5 -5 -5 -4 -4 -4 -4 -4 -3 -3 -3 -3 -2 -1 ------- Run | Yrd Mat Min Exi Min Mat Fac Low Low Dat Pro Fac Ext Cet Arc Hub Fac Upp Upp Zhi Pro Fac Upp Upp War Pro Res Arm Lab Res Acc Maximum Alert Level 5 | . . . . . 2 1 . . . . . 2 2 1 3 3 . . . . 1 . . . . 3 4 . . 5 Low Security (%) 42 | 100 100 100 . 100 13 95 . . . . 100 74 . 70 24 . . . . . 52 . . . . 15 . . 100 19 Level 1 21 | . . . . . 67 4 . . . . . 16 4 29 8 14 . . . . 48 . . . . 29 36 . . 4 Level 2 17 | . . . . . 18 . . . . . . 8 95 . 6 68 . . . . . . . . . 41 11 . . 11 Level 3 10 | . . . . . . . . . . . . . . . 61 17 . . . . . . . . . 13 29 . . 15 Level 4 3 | . . . . . . . . . . . . . . . . . . . . . . . . . . . 22 . . 12 Level 5 2 | . . . . . . . . . . . . . . . . . . . . . . . . . . . . . . 17 High Security 2 | . . . . . . . . . . . . . . . . . . . . . . . . . . . . . . 19 Max Security . | . . . . . . . . . . . . . . . . . . . . . . . . . . . . . . . Peak Influence 2998 | . 102 50 . 109 495 212 . . . . 105 562 609 264 1018 955 . . . . 314 . . . . 778 1458 . 153 2998 Initial 473 | . . . . . 16 212 . . . . . . 309 183 6 473 . . . . 23 . . . . 42 403 . . 60 Average 421 | . 13 3 . 57 301 73 . . . . 25 119 500 148 629 586 . . . . 151 . . . . 416 760 . 54 1200 Influence Increases 17957 | . 243 62 . 113 1289 144 229 356 . 120 240 974 400 262 1745 1155 240 330 5 140 649 367 526 220 390 1660 1983 . 295 3820 Destroy 0b10 Robot/C 9900 | . 120 40 . 60 760 20 200 300 . 100 160 500 160 80 700 660 200 240 . 120 260 300 480 200 340 1000 980 . 80 1840 Destroy 0b10 Robot/NC 580 | . 45 . . . 85 25 . . . . 5 50 10 45 25 25 . . 5 . 15 . . 5 . 90 25 . 5 120 Destroy Leader 1726 | . 28 10 . 10 186 14 20 20 . 20 32 64 . . 130 132 40 30 . 20 72 20 20 . 50 198 158 . 20 432 Allied During Kill 1405 | . . . . . 20 . 9 6 . . . 320 170 104 440 35 . . . . . 2 26 . . . 260 . 7 6 Successful Hack 639 | . 18 12 . . 13 54 . . . . 24 7 . . 36 119 . . . . 52 . . . . 107 122 . . 75 Disable Machine 900 | . . . . 30 90 30 . . . . 15 15 30 30 195 60 . . . . 60 . . . . 45 195 . 15 90 Anti-Garrison Action 150 | . . . . . . . . . . . . . . . 150 . . . . . . . . . . . . . . . Destroy Structure 1832 | . 2 . . 13 90 1 . . . . 4 18 30 3 69 34 . . . . 160 . . . . 70 228 . 168 942 Partial Spotted 30 | . . . . . . . . . . . . . . . . . . . . . 15 . . . . 15 . . . . Lose Combat Pursuer 795 | . 30 . . . 45 . . 30 . . . . . . . 90 . 60 . . 15 45 . 15 . 135 15 . . 315 Influence Decreases 14959 | . 243 62 . 70 863 613 197 383 5 120 240 420 495 702 797 1210 756 402 329 102 381 606 451 250 438 956 1293 1458 194 923 Entered New Map 4344 | . . . . . 27 257 . 7 5 . . . 245 276 13 494 338 76 324 . 15 114 13 142 112 22 365 1458 . 41 Time Decay 8522 | . 223 62 . 70 604 356 144 356 . 120 220 340 230 326 436 616 398 326 5 92 346 472 398 68 326 584 638 . 154 612 Lost Part 642 | . 20 . . . 172 . 40 . . . 10 40 . . 10 . 20 . . 10 20 . . . . 50 20 . . 230 Lost Ally 1001 | . . . . . 60 . 13 20 . . 10 40 20 100 188 100 . . . . . 20 40 40 . . 270 . 40 40 Purge Threat 450 | . . . . . . . . . . . . . . . 150 . . . . . . . . . . 300 . . . . Squads Dispatched 98 | . 1 . . . 7 3 . . . . 3 3 . . 7 9 . . . . 6 . . . . 11 15 . . 33 Investigation 19 | . 1 . . . 3 1 . . . . 1 . . . 1 4 . . . . 2 . . . . 1 5 . . . Extermination 21 | . . . . . . 1 . . . . 1 . . . 1 2 . . . . 3 . . . . 3 4 . . 6 Reinforcement 19 | . . . . . 2 1 . . . . 1 3 . . 3 1 . . . . 1 . . . . 1 3 . . 3 Assault 31 | . . . . . 2 . . . . . . . . . 2 2 . . . . . . . . . 5 3 . . 17 Garrison 4 | . . . . . . . . . . . . . . . . . . . . . . . . . . 1 . . . 3 Intercept 4 | . . . . . . . . . . . . . . . . . . . . . . . . . . . . . . 4 Searches Triggered . | . . . . . . . . . . . . . . . . . . . . . . . . . . . . . . . Data Miner Redirects 9 | . . . . . . . . . . . . . . . . 3 . . . . . . . . . 3 3 . . . Construction Impeded 8 | . . . . . 1 1 . . . . . 1 . . 1 1 . . . . 1 . . . . 1 . . . 1 Haulers Reinforced 2 | . . . . . . . . . . . . . . . . . . . . . . . . . . . . . . 2 Active Scanning Responses . | . . . . . . . . . . . . . . . . . . . . . . . . . . . . . . . Cargo Convoy Interrupts . | . . . . . . . . . . . . . . . . . . . . . . . . . . . . . . . Stealth | -11 -10 -10 -10 -9 -8 -7 -7 -7 -7 -6 -6 -6 -6 -6 -6 -5 -5 -5 -5 -4 -4 -4 -4 -4 -3 -3 -3 -3 -2 -1 --------- Run | Yrd Mat Min Exi Min Mat Fac Low Low Dat Pro Fac Ext Cet Arc Hub Fac Upp Upp Zhi Pro Fac Upp Upp War Pro Res Arm Lab Res Acc Distress Signals 41 | . . . . . 7 . . . . . . 5 2 . 3 4 . . . . 1 . . . . 3 5 . 7 4 Communications Jammed 13 | . . . . . . . . . . . . . . . . . . . . . . . . . . 10 3 . . . Distress Signals 7 | . . . . . . . . . . . . . . . . . . . . . . . . . . 4 3 . . . Times Spotted 679 | . 17 2 . 3 58 3 12 19 . 5 10 28 6 26 45 28 10 15 . 8 19 18 23 36 17 67 53 1 3 147 Peak Tracking Total 17 | . 4 2 . 3 9 1 7 4 . 3 4 8 5 1 6 5 4 6 . 3 4 8 7 10 5 13 5 1 2 17 Tactical Retreats 37 | . 1 . . . 3 . . 1 . . . . . . . 5 . 4 . . 1 3 . 1 . 6 1 . . 11 Traps | -11 -10 -10 -10 -9 -8 -7 -7 -7 -7 -6 -6 -6 -6 -6 -6 -5 -5 -5 -5 -4 -4 -4 -4 -4 -3 -3 -3 -3 -2 -1 ------- Run | Yrd Mat Min Exi Min Mat Fac Low Low Dat Pro Fac Ext Cet Arc Hub Fac Upp Upp Zhi Pro Fac Upp Upp War Pro Res Arm Lab Res Acc Traps Triggered 14 | . 1 . . . 3 . . . . . . 4 . . 2 . . . . . 1 . . 1 . 1 1 . . . Indirectly 1 | . . . . . . . . . . . . . . . . . . . . . . . . 1 . . . . . . Trap Hack Attempts . | . . . . . . . . . . . . . . . . . . . . . . . . . . . . . . . Triggered . | . . . . . . . . . . . . . . . . . . . . . . . . . . . . . . . Disarmed . | . . . . . . . . . . . . . . . . . . . . . . . . . . . . . . . Reprogrammed . | . . . . . . . . . . . . . . . . . . . . . . . . . . . . . . . Reused . | . . . . . . . . . . . . . . . . . . . . . . . . . . . . . . . Traps Extracted . | . . . . . . . . . . . . . . . . . . . . . . . . . . . . . . . Installed . | . . . . . . . . . . . . . . . . . . . . . . . . . . . . . . . Triggered . | . . . . . . . . . . . . . . . . . . . . . . . . . . . . . . . Most Traps Carried 4 | . . . . . . . . . . 4 4 3 . . . . . . . . . . . . . . . . . . Machines | -11 -10 -10 -10 -9 -8 -7 -7 -7 -7 -6 -6 -6 -6 -6 -6 -5 -5 -5 -5 -4 -4 -4 -4 -4 -3 -3 -3 -3 -2 -1 ---------- Run | Yrd Mat Min Exi Min Mat Fac Low Low Dat Pro Fac Ext Cet Arc Hub Fac Upp Upp Zhi Pro Fac Upp Upp War Pro Res Arm Lab Res Acc Machines Disabled 72 | . . . . 2 6 2 1 . . . 1 5 2 2 14 4 . . . . 4 . 2 2 . 3 13 2 1 6 Max in Single Turn 4 | . . . . 2 2 1 1 . . . 1 1 1 . 1 1 . . . . 4 . 1 2 . 1 2 1 1 1 Garrison Access 8 | . . . . . 1 1 . . . . . . . . 1 1 . . . . 1 . . . . 2 . . 1 . Network Hub 3 | . . . . . . . . . . . . . . . 3 . . . . . . . . . . . . . . . Machines Repaired . | . . . . . . . . . . . . . . . . . . . . . . . . . . . . . . . Machines Dismantled 4 | . . . . . . . . . . . . . 1 . 3 . . . . . . . . . . . . . . . Machines Sabotaged . | . . . . . . . . . . . . . . . . . . . . . . . . . . . . . . . Overloaded Fab Kills . | . . . . . . . . . . . . . . . . . . . . . . . . . . . . . . . Hacking | -11 -10 -10 -10 -9 -8 -7 -7 -7 -7 -6 -6 -6 -6 -6 -6 -5 -5 -5 -5 -4 -4 -4 -4 -4 -3 -3 -3 -3 -2 -1 --------- Run | Yrd Mat Min Exi Min Mat Fac Low Low Dat Pro Fac Ext Cet Arc Hub Fac Upp Upp Zhi Pro Fac Upp Upp War Pro Res Arm Lab Res Acc Machines Accessed 96 | . 6 2 2 . 8 8 . 2 3 . 4 4 . . 6 7 . 1 4 . 4 1 1 6 . 7 12 2 1 5 Terminals 50 | . 5 2 . . 5 5 . . . . 3 4 . . 6 2 . . . . 2 . 1 . . 5 6 . . 4 Fabricators 8 | . . . . . . 1 . . . . . . . . . 2 . . . . . . . . . . 5 . . . Repair Stations 6 | . 1 . . . 1 1 . . . . . . . . . 1 . . . . 1 . . . . . 1 . . . Recycling Units . | . . . . . . . . . . . . . . . . . . . . . . . . . . . . . . . Scanalyzers 4 | . . . . . 1 . . . . . 1 . . . . 1 . . . . . . . . . 1 . . . . Garrison Access 7 | . . . . . 1 1 . . . . . . . . . 1 . . . . 1 . . . . 1 . . 1 1 Total Hacks 408 | . 24 6 2 . 24 16 . 8 20 . 14 9 . . 23 46 . 1 16 . 23 1 4 10 . 52 82 2 4 21 Successful 187 | . 14 4 2 . 11 5 . 8 20 . 5 1 . . 10 23 . 1 16 . 6 1 4 10 . 19 22 2 . 3 Failed 220 | . 9 2 . . 13 11 . . . . 9 8 . . 13 23 . . . . 17 . . . . 33 60 . 4 18 Catastrophic 57 | . . 1 . . 2 6 . . . . 2 2 . . 2 3 . . . . 3 . . . . 7 23 . . 6 Database Lockouts 1 | . 1 . . . . . . . . . . . . . . . . . . . . . . . . . . . . . Manual 140 | . 18 6 1 . 16 3 . . . . 5 6 1 . 6 20 . . . . 3 . . 2 . 15 30 1 . 7 Terminals 214 | . 20 6 . . 18 9 . . . . 10 9 . . 23 10 . . . . 9 . 4 . . 37 42 . . 17 Fabricators 57 | . . . . . . 2 . . . . . . . . . 23 . . . . . . . . . . 32 . . . Repair Stations 37 | . 4 . . . 2 3 . . . . . . . . . 9 . . . . 11 . . . . . 8 . . . Recycling Units . | . . . . . . . . . . . . . . . . . . . . . . . . . . . . . . . Scanalyzers 22 | . . . . . 3 . . . . . 4 . . . . 3 . . . . . . . . . 12 . . . . Garrison Access 18 | . . . . . 1 2 . . . . . . . . . 1 . . . . 3 . . . . 3 . . 4 4 Terminal Hacks 108 | . 8 4 2 . 4 2 . 8 20 . 1 1 . . 7 2 . 1 16 . 2 1 4 10 . 8 3 2 . 2 Record 29 | . . . 1 . . . . 7 2 . . . . . . . . . 4 . . . 4 9 . . . 1 . 1 Part Schematic 21 | . 1 2 . . 1 . . . 10 . . 1 . . . . . . 4 . . . . . . . 2 . . . Robot Schematic 6 | . . . . . . . . . 5 . . . . . . . . . . . . . . . . 1 . . . . Robot Analysis 15 | . 5 2 . . 2 1 . . . . . . . . . . . . 4 . . . . . . 1 . . . . Prototype ID Bank 10 | . 1 . . . . 1 . . 3 . . . . . 1 . . . 4 . . . . . . . . . . . Open Door 4 | . . . . . . . . 1 . . . . . . . . . 1 . . . 1 . 1 . . . . . . Level Access Points 1 | . . . . . . . . . . . . . . . 1 . . . . . . . . . . . . . . . Branch Access Points 4 | . . . . . . . . . . . 1 . . . . 1 . . . . 1 . . . . 1 . . . . Terminal Index 2 | . . . . . . . . . . . . . . . 1 . . . . . 1 . . . . . . . . . Scanalyzer Index 1 | . . . . . . . . . . . . . . . . . . . . . . . . . . 1 . . . . Unreport Threat 3 | . . . . . . . . . . . . . . . 1 . . . . . . . . . . 2 . . . . Locate Traps 3 | . . . . . 1 . . . . . . . . . . . . . . . . . . . . 1 1 . . . Recall Investigation 1 | . 1 . . . . . . . . . . . . . . . . . . . . . . . . . . . . . Hauler Manifests 1 | . . . . . . . . . . . . . . . . . . . . . . . . . . 1 . . . . Registered Components 1 | . . . . . . . . . . . . . . . 1 . . . . . . . . . . . . . . . Zone Layout 4 | . . . . . . . . . . . . . . . 2 1 . . . . . . . . . . . . . 1 Proto ID Catalog 1 | . . . 1 . . . . . . . . . . . . . . . . . . . . . . . . . . . Release Object 1 | . . . . . . . . . . . . . . . . . . . . . . . . . . . . 1 . . Fabricator Hacks 15 | . . . . . . 1 . . . . . . . . . 7 . . . . . . . . . . 7 . . . Network Status 3 | . . . . . . 1 . . . . . . . . . 1 . . . . . . . . . . 1 . . . Load Schematic 5 | . . . . . . . . . . . . . . . . 2 . . . . . . . . . . 3 . . . Build 7 | . . . . . . . . . . . . . . . . 4 . . . . . . . . . . 3 . . . Repair Station Hacks 15 | . 4 . . . 2 1 . . . . . . . . . 3 . . . . 2 . . . . . 3 . . . Scan Component 9 | . 2 . . . 1 1 . . . . . . . . . 2 . . . . 1 . . . . . 2 . . . Repair 6 | . 2 . . . 1 . . . . . . . . . . 1 . . . . 1 . . . . . 1 . . . Recycling Unit Hacks . | . . . . . . . . . . . . . . . . . . . . . . . . . . . . . . . Scanalyzer 13 | . . . . . 3 . . . . . 2 . . . . 1 . . . . . . . . . 7 . . . . Insert Component 6 | . . . . . 1 . . . . . 1 . . . . 1 . . . . . . . . . 3 . . . . Analyze 6 | . . . . . 1 . . . . . 1 . . . . . . . . . . . . . . 4 . . . . Retrieve Study 1 | . . . . . 1 . . . . . . . . . . . . . . . . . . . . . . . . . Garrison Access Hacks 5 | . . . . . 1 1 . . . . . . . . . 1 . . . . 1 . . . . 1 . . . . Seal Access 5 | . . . . . 1 1 . . . . . . . . . 1 . . . . 1 . . . . 1 . . . . Unauthorized Hacks 31 | . 2 . . . 1 . . . . . 2 . . . 3 9 . . . . 1 . . . . 3 9 . . 1 Terminals 19 | . 2 . . . 1 . . . . . 2 . . . 3 2 . . . . 1 . . . . 3 4 . . 1 Assimilate 4 | . . . . . . . . . . . 1 . . . 1 1 . . . . . . . . . . 1 . . . Botnet 14 | . 2 . . . 1 . . . . . 1 . . . 1 1 . . . . 1 . . . . 3 3 . . 1 Sabotage 1 | . . . . . . . . . . . . . . . 1 . . . . . . . . . . . . . . . Fabricators 11 | . . . . . . . . . . . . . . . . 6 . . . . . . . . . . 5 . . . Report 1 | . . . . . . . . . . . . . . . . 1 . . . . . . . . . . . . . . Prioritize 3 | . . . . . . . . . . . . . . . . 2 . . . . . . . . . . 1 . . . Fabnet 4 | . . . . . . . . . . . . . . . . 2 . . . . . . . . . . 2 . . . Haulers 2 | . . . . . . . . . . . . . . . . 1 . . . . . . . . . . 1 . . . Recompile 1 | . . . . . . . . . . . . . . . . . . . . . . . . . . . 1 . . . Repair Stations 1 | . . . . . . . . . . . . . . . . 1 . . . . . . . . . . . . . . Patch 1 | . . . . . . . . . . . . . . . . 1 . . . . . . . . . . . . . . Recycling Units . | . . . . . . . . . . . . . . . . . . . . . . . . . . . . . . . Scanalyzers . | . . . . . . . . . . . . . . . . . . . . . . . . . . . . . . . Garrison Access . | . . . . . . . . . . . . . . . . . . . . . . . . . . . . . . . Data Cores Recovered 3 | . 1 . . . . 1 . . . . . . . . . . . . . . . . . . . 1 . . . . Used . | . . . . . . . . . . . . . . . . . . . . . . . . . . . . . . . Hacking Detections 67 | . 5 2 . . 7 7 . . . . 4 4 . . 5 6 . . . . 3 . . . . 6 12 . 1 5 Full Trace Events 19 | . 4 1 . . 3 1 . . . . 1 . . . . 2 . . . . 2 . . . . 1 4 . . . Feedback Events 4 | . 1 . . . . 1 . . . . . . . . . . . . . . 1 . . . . . 1 . . . Corruption 3 | . 1 . . . . 1 . . . . . . . . . . . . . . . . . . . . 1 . . . Hackware Fried 1 | . . . . . . . . . . . . . . . . . . . . . 1 . . . . . . . . . Feedback Blocked . | . . . . . . . . . . . . . . . . . . . . . . . . . . . . . . . Robot Schematics Acquired 6 | . . . . . . . . . 5 . . . . . . . . . . . . . . . . 1 . . . . Robots Built 5 | . . . . . . . . . . . . . . . . 5 . . . . . . . . . . . . . . Authchips . | . . . . . . . . . . . . . . . . . . . . . . . . . . . . . . . Time 236 | . . . . . . . . . . . . . . . . 236 . . . . . . . . . . . . . . Total Robot Build Rating 24 | . . . . . . . . . . . . . . . . 24 . . . . . . . . . . . . . . Part Schematics Acquired 24 | . 1 2 . . 2 . . . 10 . 1 1 . . . . . . 4 . . . . . . 1 2 . . . Parts Built 7 | . . . . . . . . . . . . . . . . 3 . . . . . . . . . . 4 . . . Authchips 1 | . . . . . . . . . . . . . . . . . . . . . . . . . . . 1 . . . Time 447 | . . . . . . . . . . . . . . . . 257 . . . . . . . . . . 190 . . . Total Part Build Rating 49 | . . . . . . . . . . . . . . . . 20 . . . . . . . . . . 29 . . . Part Studies Acquired 1 | . . . . . 1 . . . . . . . . . . . . . . . . . . . . . . . . . Parts Repaired 6 | . 2 . . . 1 . . . . . . . . . . 1 . . . . 1 . . . . . 1 . . . Time 248 | . 52 . . . 26 . . . . . . . . . . 68 . . . . 68 . . . . . 34 . . . Parts Recycled . | . . . . . . . . . . . . . . . . . . . . . . . . . . . . . . . Recycled Matter . | . . . . . . . . . . . . . . . . . . . . . . . . . . . . . . . Retrieved Matter . | . . . . . . . . . . . . . . . . . . . . . . . . . . . . . . . Retrieved Components . | . . . . . . . . . . . . . . . . . . . . . . . . . . . . . . . Parts Scanalyzed 5 | . . . . . 1 . . . . . 1 . . . . 1 . . . . . . . . . 2 . . . . Part Schematics Acquired 3 | . . . . . 1 . . . . . 1 . . . . . . . . . . . . . . 1 . . . . Parts Damaged 3 | . . . . . 1 . . . . . . . . . . 1 . . . . . . . . . 1 . . . . Bothacking | -11 -10 -10 -10 -9 -8 -7 -7 -7 -7 -6 -6 -6 -6 -6 -6 -5 -5 -5 -5 -4 -4 -4 -4 -4 -3 -3 -3 -3 -2 -1 ------------ Run | Yrd Mat Min Exi Min Mat Fac Low Low Dat Pro Fac Ext Cet Arc Hub Fac Upp Upp Zhi Pro Fac Upp Upp War Pro Res Arm Lab Res Acc Used RIF Installer . | . . . . . . . . . . . . . . . . . . . . . . . . . . . . . . . Robots Hacked 22 | . . . 4 . . . . . . . . 1 2 . . . . . . . . 2 . 4 1 . 2 . 3 3 Non-combat 3 | . . . 3 . . . . . . . . . . . . . . . . . . . . . . . . . . . Combat 19 | . . . 1 . . . . . . . . 1 2 . . . . . . . . 2 . 4 1 . 2 . 3 3 Robot Hacks Applied 7 | . . . 4 . . . . . . . . 1 2 . . . . . . . . . . . . . . . . . parse_system 7 | . . . 4 . . . . . . . . 1 2 . . . . . . . . . . . . . . . . . Relay Couplers Released 6 | . . . . . . . . . . . . . . . 3 . . . . . . . . . . 2 . . 1 . Machine Destruction 6 | . . . . . . . . . . . . . . . 3 . . . . . . . . . . 2 . . 1 . Fabnet Peak Effective % 6 | . . . . . . . . . . . . . . . . . . . . 6 6 6 6 6 2 2 2 2 6 2 Autooverrided 15 | . . . . . . . . . . . . . . . . . . . . . . 2 . 4 1 . 2 . 3 3 Robots Rewired 25 | . . . . . . . 2 . . . . 12 . . . . . . . . . 2 . . . . 9 . . . Allies Hacked 2 | . . . . . . . 1 . . . . . . . . . . . . . . . . . . . . . . 1 Hacks Repelled . | . . . . . . . . . . . . . . . . . . . . . . . . . . . . . . . Allies | -11 -10 -10 -10 -9 -8 -7 -7 -7 -7 -6 -6 -6 -6 -6 -6 -5 -5 -5 -5 -4 -4 -4 -4 -4 -3 -3 -3 -3 -2 -1 -------- Run | Yrd Mat Min Exi Min Mat Fac Low Low Dat Pro Fac Ext Cet Arc Hub Fac Upp Upp Zhi Pro Fac Upp Upp War Pro Res Arm Lab Res Acc Total Allies 73 | . . . . 3 . . 2 2 . . 1 18 5 . 1 5 . . . . . 4 . 4 1 . 21 . 3 3 Largest Group 17 | . . . . 3 3 . 2 2 . . 1 13 17 15 10 4 . . . . . 2 2 2 1 . 10 4 3 1 Highest-Rated Group 925 | . . . . 40 40 . 39 56 . . 10 470 925 880 629 136 . . . . . 95 95 106 30 . 481 224 170 58 Highest-Rated Ally 159 | . . . . 16 16 . 23 31 . . 10 159 159 159 96 46 . . . . . 64 48 58 30 . 64 56 67 58 Total Orders 1 | . . . . . . . . . . . . . . 1 . . . . . . . . . . . . . . . . STAY 1 | . . . . . . . . . . . . . . 1 . . . . . . . . . . . . . . . . Ally Attacks 566 | . . . . . 33 . 11 4 . . . 119 13 22 128 39 . . . . . 4 14 17 7 . 110 19 15 11 Total Damage 15168 | . . . . . 385 . 97 66 . . . 2518 334 588 4296 809 . . . . . 144 530 528 70 . 2751 689 1068 295 Kills 90 | . . . . . 3 . 3 1 . . . 23 1 4 22 6 . . . . . 1 7 3 . . 13 1 2 . Allies Corrupted 3 | . . . . . . . . . . . . . . . 3 . . . . . . . . . . . . . . . Allies Melted 5 | . . . . . . . . . . . . . . . 1 . . . . . . . . 1 . . . . 3 . Intel | -11 -10 -10 -10 -9 -8 -7 -7 -7 -7 -6 -6 -6 -6 -6 -6 -5 -5 -5 -5 -4 -4 -4 -4 -4 -3 -3 -3 -3 -2 -1 ------- Run | Yrd Mat Min Exi Min Mat Fac Low Low Dat Pro Fac Ext Cet Arc Hub Fac Upp Upp Zhi Pro Fac Upp Upp War Pro Res Arm Lab Res Acc Active Infowar (turns) 6115 | . . . . . 582 908 101 932 149 351 334 494 1 . . . . 1 . . . . . . . 1573 658 31 . . Sensors 1432 | . . . . . . . . 932 149 351 . . . . . . . . . . . . . . . . . . . . Structural 580 | . . . . . 580 . . . . . . . . . . . . . . . . . . . . . . . . . Decoding 829 | . . . . . . . . . . . 334 494 . . . . . 1 . . . . . . . . . . . . Jamming 3272 | . . . . . 2 908 101 . . . . . 1 . . . . . . . . . . . . 1573 656 31 . . ECM 2 | . . . . . . . . . . . . . . . . . . . . . . . . . . . 2 . . . Robot Analysis Total 15 | . 5 2 . . 2 1 . . . . . . . . . . . . 4 . . . . . . 1 . . . . Derelict Logs Recovered 13 | . . 3 . . . . 2 1 . 1 . . . . . . 1 . . 1 . 2 2 . . . . . . . Drone Launches . | . . . . . . . . . . . . . . . . . . . . . . . . . . . . . . . Drone Recoveries . | . . . . . . . . . . . . . . . . . . . . . . . . . . . . . . . Decoded 0b10 Intel 36 | . . . . . . . . . . . 23 13 . . . . . . . . . . . . . . . . . . Items 36 | . . . . . . . . . . . 23 13 . . . . . . . . . . . . . . . . . . Exploration | -11 -10 -10 -10 -9 -8 -7 -7 -7 -7 -6 -6 -6 -6 -6 -6 -5 -5 -5 -5 -4 -4 -4 -4 -4 -3 -3 -3 -3 -2 -1 ------------- Run | Yrd Mat Min Exi Min Mat Fac Low Low Dat Pro Fac Ext Cet Arc Hub Fac Upp Upp Zhi Pro Fac Upp Upp War Pro Res Arm Lab Res Acc Turns Passed 35442 | 94 1420 1048 865 193 2074 908 978 1821 149 1268 823 2087 491 732 1082 2044 958 730 403 1195 1275 1250 955 1498 1126 1927 2275 614 550 2609 Spaces Moved 15955 | 54 647 424 355 77 810 498 402 781 77 521 264 924 296 290 577 953 371 268 151 454 634 663 522 815 550 815 925 301 299 1237 Core 172 | 2 . . . . 1 . . . . . . . . . . . . . . . . . . . . . . . . 169 Treads 12445 | 52 647 424 355 77 673 498 402 235 . 365 107 41 . . 20 713 371 268 151 454 634 663 522 815 550 815 925 301 299 1068 Legs 1499 | . . . . . . . . 546 77 156 157 563 . . . . . . . . . . . . . . . . . . Wheels 1839 | . . . . . 136 . . . . . . 320 296 290 557 240 . . . . . . . . . . . . . . Hover . | . . . . . . . . . . . . . . . . . . . . . . . . . . . . . . . Flight . | . . . . . . . . . . . . . . . . . . . . . . . . . . . . . . . Fastest Speed 50 | 50 160 240 240 240 125 160 159 192 195 195 235 115 115 115 115 163 164 245 245 247 165 165 165 165 167 155 156 162 156 50 Average Speed 182 | 155 186 240 240 240 192 160 207 215 195 223 249 188 115 135 122 183 226 245 245 247 165 165 165 165 181 165 159 162 163 146 Slowest Speed 800 | 160 240 240 240 240 800 160 360 470 195 235 260 400 130 175 240 246 245 245 247 247 166 165 165 167 247 245 238 162 164 249 Overloaded Moves . | . . . . . . . . . . . . . . . . . . . . . . . . . . . . . . . Propulsion Burnouts . | . . . . . . . . . . . . . . . . . . . . . . . . . . . . . . . Robots Hopped . | . . . . . . . . . . . . . . . . . . . . . . . . . . . . . . . Potential Cave-ins 15 | . . . . . 1 . . . . . 2 4 . . . . . . . . . . . . . . 3 . . 5 Cave-ins Triggered . | . . . . . . . . . . . . . . . . . . . . . . . . . . . . . . . Teleports 1 | . . . . . . . . . . . . . . . . . . . . . . . . . . . . 1 . . Exploration Rate (%) 53 | 4 77 91 65 15 61 14 50 78 68 66 6 84 72 88 55 23 57 46 59 60 16 71 64 89 74 23 48 99 12 36 Regions Visited 30 Branch Regions 21 Pre-discovered Areas 13 | . . 2 1 . . . 1 1 1 1 . . . . . . . . 3 1 . . 2 . . . . . . . Known Exits Taken 9 | . . . . . 1 . . . . 1 1 . . . 1 1 . . . . 1 . . . 1 1 . . 1 . Unknown Exits Taken 21 | 1 1 1 1 1 . 1 1 1 1 . . 1 1 1 . . 1 1 1 1 . 1 1 1 . . 1 1 . . Scrap Searched 25 | . . 1 . . . . 3 5 . 3 . . . . . . 1 2 . 1 . 3 2 . 4 . . . . . Spaces Dug 99 | . . . . 6 5 . . . . . 1 1 . . . . . . . . 4 2 . . . 7 9 . . 64 Terrain Destroyed 1252 | . 1 . . 13 95 1 2 . . . 5 14 36 2 45 13 29 39 . 30 84 32 18 4 49 66 121 6 21 526 Melee . | . . . . . . . . . . . . . . . . . . . . . . . . . . . . . . . Projectile 449 | . . . . . . . . . . . 5 14 1 . 43 11 29 39 . 30 33 32 18 4 40 59 25 6 2 58 AOE 787 | . 1 . . 13 95 . . . . . . . 35 . . . . . . . 51 . . . 9 . 96 . 19 468 Terrain Rammed . | . . . . . . . . . . . . . . . . . . . . . . . . . . . . . . . Walls Destroyed . | . . . . . . . . . . . . . . . . . . . . . . . . . . . . . . . Machines Disabled . | . . . . . . . . . . . . . . . . . . . . . . . . . . . . . . . Actions | -11 -10 -10 -10 -9 -8 -7 -7 -7 -7 -6 -6 -6 -6 -6 -6 -5 -5 -5 -5 -4 -4 -4 -4 -4 -3 -3 -3 -3 -2 -1 --------- Run | Yrd Mat Min Exi Min Mat Fac Low Low Dat Pro Fac Ext Cet Arc Hub Fac Upp Upp Zhi Pro Fac Upp Upp War Pro Res Arm Lab Res Acc Total 19821 | 61 764 440 368 81 1146 570 487 843 76 573 390 1198 412 508 810 1163 431 301 181 488 796 749 555 899 593 1109 1482 375 330 1642 Wait 1182 | . 30 1 . . 77 16 1 . . . 64 31 54 136 64 102 7 9 . 8 76 5 5 13 1 31 327 14 4 106 Move 15925 | 53 646 423 354 76 809 497 401 780 76 520 263 923 295 289 576 952 370 267 150 453 633 662 521 814 549 814 924 300 298 1237 Hop . | . . . . . . . . . . . . . . . . . . . . . . . . . . . . . . . Pick Up 281 | 2 18 4 3 . 38 8 8 4 . 10 9 16 7 2 17 15 8 1 4 1 12 6 2 5 1 34 13 2 4 27 Fast Attach 192 | 6 5 . . . 20 4 5 2 . 1 7 12 10 9 13 8 . 2 8 3 7 4 1 8 2 13 15 14 3 10 Attach 179 | . 2 . 2 . 21 4 9 . . 8 3 6 3 3 11 14 8 . 1 . 10 2 . 1 . 35 5 1 1 29 Detach 31 | . . . . . 4 2 1 1 . . . . . 2 5 4 . . . . 4 . . . . 4 2 . . 2 Swap 184 | . 4 . 1 2 22 4 6 6 . 1 5 17 9 4 18 4 5 2 3 2 6 3 . 11 4 9 18 1 1 16 Drop 371 | . 4 3 4 . 32 9 7 6 . 2 12 30 15 6 30 18 6 3 11 4 15 9 3 20 3 43 24 13 7 32 Fire 1232 | . 54 7 . 3 123 26 33 44 . 31 27 40 9 57 67 46 27 17 4 17 31 34 23 27 33 122 110 30 12 178 Melee 26 | . . . 4 . . . . . . . . 20 2 . . . . . . . . . . . . . . . . . Ram . | . . . . . . . . . . . . . . . . . . . . . . . . . . . . . . . Kick . | . . . . . . . . . . . . . . . . . . . . . . . . . . . . . . . Crush 13 | . 1 2 . . . . . . . . . . . . . . . . . . 2 . . . . 4 . . . 4 Escape Stasis 34 | . . . . . . . . . . . . 34 . . . . . . . . . . . . . . . . . . Rewire 154 | . . . . . . . 16 . . . . 69 . . . . . . . . . 24 . . . . 44 . . 1 Trap . | . . . . . . . . . . . . . . . . . . . . . . . . . . . . . . . Miscellaneous 17 | . . . . . . . . . . . . . 8 . 9 . . . . . . . . . . . . . . . Route ------- -11/Scrapyard -10/Materials (discovered 4 exits: [*Mat x2] / *Min / [*Sub]) -10/Mines (discovered 4 exits: [*Mat x2] / *Exi / [*Sub]) -10/Exiles -9/Mines -8/Materials (discovered 2 exits: *Fac x2) -7/Factory (discovered 2 exits: *Fac / [*Low]) -7/Lower Caves -7/Lower Caves -7/Data Miner -6/Proximity Caves -6/Factory (discovered 4 exits: Low x2 / *Ext x2) -6/Extension (discovered 2 exits: *Fac / *Cet) -6/Cetus (discovered 2 exits: *Fac / [*Arc]) -6/Archives (discovered 3 exits: *Fac / *Hub x2) -6/Hub_04(d) (discovered 4 exits: *Fac x4) -5/Factory (discovered 2 exits: *Upp x2) -5/Upper Caves -5/Upper Caves (discovered 2 exits: *Fac / *Zhi) -5/Zhirov -4/Proximity Caves -4/Factory (discovered 3 exits: Res / *Upp x2) -4/Upper Caves -4/Upper Caves -4/Warlord -3/Proximity Caves -3/Research (discovered 4 exits: *Res / *Arm / Qua x2) -3/Armory -3/Lab -2/Research -1/Access History --------- Turn | Location | Event 28 | -11/Scrapyard | Discovered new exit (range 15) 95 | -11/Scrapyard | Entered Materials 317 | -10/Materials | Build established: Mutant 487 | -10/Materials | Repaired Lgt. Treads 514 | -10/Materials | Repaired Lgt. Treads 546 | -10/Materials | Discovered new exit (range 16) 586 | -10/Materials | Discovered new exit (range 10) 640 | -10/Materials | Discovered new exit (range 16) 773 | -10/Materials | Central database locked down 1092 | -10/Materials | Discovered new exit (range 16) 1515 | -10/Materials | Entered Mines 1669 | -10/Mines | Learned 4 Materials zone layouts 1796 | -10/Mines | Discovered new exit (range 5) 1906 | -10/Mines | Received a Rocket Launcher from a helpful Derelict 2024 | -10/Mines | Core integrity fell below 50% 2083 | -10/Mines | Discovered new exit (range 6) 2136 | -10/Mines | Learned location of Zion (-6) 2157 | -10/Mines | Discovered new exit (range 6) 2373 | -10/Mines | Deemed a non-threat by the Exiles lab entrance 2376 | -10/Mines | Discovered new exit (range 5) 2446 | -10/Mines | Learned location of Storage (-9) 2563 | -10/Mines | Entered Exiles 2621 | -10/Exiles | Met 8R-AWN 2664 | -10/Exiles | Met EX-HEX 2729 | -10/Exiles | Met EX-BIN 2758 | -10/Exiles | Aligned with FarCom system 2760 | -10/Exiles | Given EX-Vault access code 2818 | -10/Exiles | Opened EX-Vault 2835 | -10/Exiles | Found Superbattery 2884 | -10/Exiles | Warned to stay clear of 0b10 Research branches 3217 | -10/Exiles | Met EX-DEC 3406 | -10/Exiles | Discovered new exit (range 10) 3428 | -10/Exiles | Left Exiles lab with Superbattery 3428 | -10/Exiles | Entered Mines 3431 | -9/Mines | Met a Derelict bent on vengeance 3485 | -9/Mines | Discovered new exit (range 14) 3526 | -9/Mines | Assisted by bots powering up and referring to "LRC-V3" 3621 | -9/Mines | Entered Materials 3621 | -8/Materials | Accompanied by 3 allies 3621 | -8/Materials | Evolved 4 slots: Propulsion x2, Utility x2 3622 | -8/Materials | Identified exit to Factory 3931 | -8/Materials | Repaired Lgt. Treads 3989 | -8/Materials | Destroyed 7 combat bots 4194 | -8/Materials | Core integrity fell below 50% 4234 | -8/Materials | Lost 14 parts (1p4n3u6w) 4555 | -8/Materials | Discovered exit to Factory (range 15) 4800 | -8/Materials | Build established: Scavenger-Mutant 5482 | -8/Materials | Core integrity fell below 20% 5621 | -8/Materials | First assault squad dispatched 5695 | -8/Materials | Entered Factory 5695 | -7/Factory | Evolved 2 slots: Propulsion x2 6092 | -7/Factory | Discovered new exit (range 9) 6365 | -7/Factory | Identified exit to Factory 6549 | -7/Factory | Discovered new exit (range 10) 6603 | -7/Factory | Entered Lower Caves 6786 | -7/Lower Caves | Attracted the attention of an 0b10 outpost 6846 | -7/Lower Caves | Lost 8 parts (5n3u) 6848 | -7/Lower Caves | Encountered a Warlord checkpoint 6884 | -7/Lower Caves | Found DCF Scrap (13 items) 6989 | -7/Lower Caves | Learned location of Extension (-6) 7203 | -7/Lower Caves | Build established: Derelict-Mutant 7468 | -7/Lower Caves | Learned Factory emergency access door positions 7571 | -7/Lower Caves | Discovered new exit (range 5) 7581 | -7/Lower Caves | Entered another Lower Caves area 7581 | -7/Lower Caves | Accompanied by 1 ally 8176 | -7/Lower Caves | Build established: Scavenger-Mutant 8365 | -7/Lower Caves | Attracted the attention of an 0b10 checkpoint 8550 | -7/Lower Caves | Learned Factory terminal intel 8922 | -7/Lower Caves | Entered an active Warlord outpost 8931 | -7/Lower Caves | A Commander dispatched an escort 8952 | -7/Lower Caves | Learned location of Armory (-3) 8952 | -7/Lower Caves | Learned Armory emergency access door positions 8952 | -7/Lower Caves | Learned Factory security intel 8952 | -7/Lower Caves | Learned Armory garrison access intel 9085 | -7/Lower Caves | Discovered new exit (range 11) 9402 | -7/Lower Caves | Entered Data Miner 9402 | -7/Data Miner | Accompanied by 2 allies 9402 | -7/Data Miner | Discovered new exit (range 6) 9403 | -7/Data Miner | Commander's escort returned to base 9403 | -7/Data Miner | Commander's escort returned to base 9440 | -7/Data Miner | Met Data Miner 9473 | -7/Data Miner | Learned location of Section 7 (-3) 9473 | -7/Data Miner | Acquired the access code to Warlord's prototype stash 9506 | -7/Data Miner | Received God Mode back door access code from Data Miner 9551 | -7/Data Miner | Entered Proximity Caves 9873 | -6/Proximity Caves | Spotted B-75 Beast 9903 | -6/Proximity Caves | Core integrity fell below 50% 9935 | -6/Proximity Caves | Destroyed B-75 Beast 9963 | -6/Proximity Caves | Lost 12 parts (7n3u2w) 10204 | -6/Proximity Caves | Build established: Mutant 10779 | -6/Proximity Caves | Discovered exit to Factory (range 5) 10819 | -6/Proximity Caves | Entered Factory 10819 | -6/Factory | Evolved 2 slots: Weapon x2 10822 | -6/Factory | Loaded intel: 28 terminal locations 11258 | -6/Factory | Build established: Derelict-Skirmisher 11360 | -6/Factory | Identified exit to Lower Caves 11360 | -6/Factory | Identified exit to Extension 11642 | -6/Factory | Entered Extension 11910 | -6/Extension | Rescued a captive Derelict 12525 | -6/Extension | Rescued A7 12572 | -6/Extension | Build established: Scavenger-Skirmisher 12779 | -6/Extension | Rescued a captive Derelict 12780 | -6/Extension | Rescued a captive Derelict 13164 | -6/Extension | Build established: Commander-Skirmisher 13177 | -6/Extension | Spotted B-75 Beast 13184 | -6/Extension | Allies destroyed B-75 Beast 13195 | -6/Extension | Spotted B-75 Beast 13225 | -6/Extension | Allies destroyed B-75 Beast 13255 | -6/Extension | Lost 4 allies 13413 | -6/Extension | Rescued a captive Derelict 13455 | -6/Extension | Rescued a captive Derelict 13642 | -6/Extension | Discovered new exit (range 10) 13643 | -6/Extension | Discovered new exit (range 6) 13663 | -6/Extension | Build established: Commander-Tank 13729 | -6/Extension | Entered Cetus 13729 | -6/Cetus | Accompanied by 13 allies (A7) 13734 | -6/Cetus | Acquired a Cetus Manufacturing Module code from A7 13744 | -6/Cetus | Spotted Cetus Guard 13745 | -6/Cetus | Spotted Cetus Guard 13749 | -6/Cetus | Destroyed Cetus Guard 13750 | -6/Cetus | Destroyed Cetus Guard 13751 | -6/Cetus | Destroyed Cetus Guard 13754 | -6/Cetus | Spotted Cetus Guard 13766 | -6/Cetus | Destroyed Cetus Guard 13801 | -6/Cetus | Started Cetus Manufacturing Module 13815 | -6/Cetus | Discovered new exit (range 15) 13826 | -6/Cetus | Manufactured an Enhanced Grunt 13837 | -6/Cetus | Spotted Cetus Guard 13837 | -6/Cetus | Spotted Cetus Guard 13842 | -6/Cetus | Allies destroyed Cetus Guard 13842 | -6/Cetus | Spotted Cetus Guard 13843 | -6/Cetus | Destroyed Cetus Guard 13843 | -6/Cetus | Destroyed Cetus Guard 13848 | -6/Cetus | Destroyed Cetus Guard 13851 | -6/Cetus | Manufactured an Enhanced Grunt 13853 | -6/Cetus | Discovered new exit (range 16) 13860 | -6/Cetus | Met Revision 17 13866 | -6/Cetus | System corruption reached 10% 13876 | -6/Cetus | Manufactured an Enhanced Grunt 13901 | -6/Cetus | Manufactured an Enhanced Grunt 13926 | -6/Cetus | Manufactured an Enhanced Grunt 14104 | -6/Cetus | Cetus Manufacturing Module disabled 14150 | -6/Cetus | Escorted A7 to Cetus Mainframe 14220 | -6/Cetus | Entered Archives 14220 | -6/Archives | Accompanied by 16 allies (A7) 14225 | -6/Archives | Received a hacking code to weaken MAIN.C 14267 | -6/Archives | Discovered new exit (range 13) 14275 | -6/Archives | Lost 5 allies 14346 | -6/Archives | Discovered new exit (range 15) 14584 | -6/Archives | Discovered new exit (range 16) 14655 | -6/Archives | Build established: Commander-Skirmisher 14952 | -6/Archives | Entered Hub_04(d) 14952 | -6/Hub_04(d) | Accompanied by 10 allies 14976 | -6/Hub_04(d) | Identified exit to Factory 15037 | -6/Hub_04(d) | Network Hub disabled 15045 | -6/Hub_04(d) | Lost 3 allies 15106 | -6/Hub_04(d) | Spotted Lightning 15106 | -6/Hub_04(d) | Spotted Lightning 15106 | -6/Hub_04(d) | Spotted Lightning 15112 | -6/Hub_04(d) | Destroyed Lightning 15112 | -6/Hub_04(d) | Destroyed Lightning 15124 | -6/Hub_04(d) | Found Prototype Device 15124 | -6/Hub_04(d) | Identified Exp. EM Shield 15148 | -6/Hub_04(d) | Allies destroyed Lightning 15148 | -6/Hub_04(d) | Found Prototype Device 15148 | -6/Hub_04(d) | Identified Exp. Phase Shifter 15165 | -6/Hub_04(d) | Found Prototype Energy Cannon 15165 | -6/Hub_04(d) | Identified EMDS 15218 | -6/Hub_04(d) | Network Hub disabled 15370 | -6/Hub_04(d) | Lost 3 allies 15398 | -6/Hub_04(d) | Build established: Scavenger-Tank 15707 | -6/Hub_04(d) | Spotted Lightning 15707 | -6/Hub_04(d) | Spotted Lightning 15707 | -6/Hub_04(d) | Spotted Lightning 15719 | -6/Hub_04(d) | Destroyed Lightning 15785 | -6/Hub_04(d) | Destroyed Lightning 15785 | -6/Hub_04(d) | Destroyed Lightning 15793 | -6/Hub_04(d) | Found Exp. EM Shield 15796 | -6/Hub_04(d) | Found Exp. Phase Shifter 15852 | -6/Hub_04(d) | Found EMDS 15862 | -6/Hub_04(d) | Found EMDS 15926 | -6/Hub_04(d) | Network Hub disabled 15952 | -6/Hub_04(d) | Found Exp. Phase Shifter 15978 | -6/Hub_04(d) | System corruption reached 30% 16034 | -6/Hub_04(d) | Entered Factory 16034 | -5/Factory | Evolved 2 slots: Power x2 16634 | -5/Factory | First assault squad dispatched 16650 | -5/Factory | Incoming assault squad redirected 16652 | -5/Factory | Incoming assault squad redirected 16894 | -5/Factory | Fabricated Com. Mass Driver? 16982 | -5/Factory | Fabricated Arm. Medium Treads (x2) 17034 | -5/Factory | Identified exit to Upper Caves 17564 | -5/Factory | Repaired Broken Centrium Heavy Treads 17599 | -5/Factory | Incoming investigation squad redirected 17708 | -5/Factory | Fabricated X-72 Disruptor (x2) 17848 | -5/Factory | Fabricated L-41 Fighter (x3) 18078 | -5/Factory | Entered Upper Caves 18169 | -5/Upper Caves | Learned location of 1 exit from Factory 18268 | -5/Upper Caves | Spotted B-75 Beast 18284 | -5/Upper Caves | Destroyed B-75 Beast 18823 | -5/Upper Caves | Discovered new exit (range 11) 18928 | -5/Upper Caves | Attracted the attention of an 0b10 checkpoint 19036 | -5/Upper Caves | Entered another Upper Caves area 19039 | -5/Upper Caves | Discovered new exit (range 12) 19685 | -5/Upper Caves | Attracted the attention of an 0b10 checkpoint 19732 | -5/Upper Caves | Discovered new exit (range 15) 19766 | -5/Upper Caves | Entered Zhirov 19769 | -5/Zhirov | Discovered new exit (range 3) 19813 | -5/Zhirov | Met Zhirov 19866 | -5/Zhirov | Learned location of Quarantine (-3) 19866 | -5/Zhirov | Learned location of Testing (-2) 19866 | -5/Zhirov | Learned location of Command (-1) 19881 | -5/Zhirov | Zhirov requested help retrieving the SGEMP Prototype 19921 | -5/Zhirov | Found Alien Artifact 19921 | -5/Zhirov | Identified Integrated Dissipator 19921 | -5/Zhirov | Installed Integrated Dissipator, increased core heat dissipation (+20) 20060 | -5/Zhirov | Build established: Scavenger-Mutant 20169 | -5/Zhirov | Entered Proximity Caves 20420 | -4/Proximity Caves | Build established: Scavenger-Tank 21312 | -4/Proximity Caves | Discovered new exit (range 7) 21321 | -4/Proximity Caves | Attracted the attention of an 0b10 checkpoint 21364 | -4/Proximity Caves | Entered Factory 21364 | -4/Factory | Evolved 2 slots: Weapon x2 21365 | -4/Factory | Identified exit to Research 21665 | -4/Factory | Build established: Scavenger-Executioner 21855 | -4/Factory | Repaired Broken Centrium Heavy Treads 21857 | -4/Factory | Adv. System Shield fried by hacking feedback 22050 | -4/Factory | Discovered new exit (range 15) 22519 | -4/Factory | Identified exit to Upper Caves 22639 | -4/Factory | Entered Upper Caves 22665 | -4/Upper Caves | Learned Research emergency access door positions 23046 | -4/Upper Caves | Attracted the attention of an 0b10 checkpoint 23173 | -4/Upper Caves | Encountered a Warlord checkpoint 23335 | -4/Upper Caves | Learned Research emergency access door positions 23593 | -4/Upper Caves | Destroyed 7 combat bots 23693 | -4/Upper Caves | Discovered new exit (range 15) 23889 | -4/Upper Caves | Entered another Upper Caves area 23889 | -4/Upper Caves | Accompanied by 2 allies 24064 | -4/Upper Caves | Learned 6 Lower Caves zone layouts 24064 | -4/Upper Caves | Learned Extension emergency access door positions 24064 | -4/Upper Caves | Learned 6 Proximity Caves zone layouts 24249 | -4/Upper Caves | Attracted the attention of an 0b10 checkpoint 24653 | -4/Upper Caves | Destroyed 8 combat bots 24714 | -4/Upper Caves | Discovered new exit (range 9) 24844 | -4/Upper Caves | Entered Warlord 25294 | -4/Warlord | Learned 4 Research zone layouts 25294 | -4/Warlord | Learned 4 Command zone layouts 25294 | -4/Warlord | Learned Testing trap positions 25297 | -4/Warlord | Learned Factory terminal intel 25297 | -4/Warlord | Learned Factory recycling unit intel 25297 | -4/Warlord | Learned Armory terminal intel 25297 | -4/Warlord | Learned Armory repair station intel 25452 | -4/Warlord | Opened Warlord's prototype stash 25461 | -4/Warlord | Found Prototype Device 25461 | -4/Warlord | Identified Thermal Barrier 25469 | -4/Warlord | Found Exp. Phase Shifter 25475 | -4/Warlord | Found Prototype Reactor 25475 | -4/Warlord | Identified Vortex Chain Reactor 25490 | -4/Warlord | Found Prototype Hackware 25743 | -4/Warlord | Warlord's base attacked by MAIN.C 25773 | -4/Warlord | Met Warlord 25860 | -4/Warlord | Found Prototype Energy Cannon 25860 | -4/Warlord | Identified Vortex Driver 25875 | -4/Warlord | Found Vortex Driver 26093 | -4/Warlord | Warlord forces counterattacked 26097 | -4/Warlord | Spotted B-90 Cyclops 26148 | -4/Warlord | Spotted B-86 Titan 26185 | -4/Warlord | Spotted B-90 Cyclops 26186 | -4/Warlord | Spotted Executioner 26193 | -4/Warlord | Spotted B-86 Titan 26226 | -4/Warlord | Lost 15 allies 26276 | -4/Warlord | Spotted Striker 26287 | -4/Warlord | Destroyed Striker 26313 | -4/Warlord | Spotted Executioner 26313 | -4/Warlord | Spotted Executioner 26328 | -4/Warlord | Discovered new exit (range 9) 26342 | -4/Warlord | Entered Proximity Caves 26372 | -3/Proximity Caves | Lost 4 allies 26974 | -3/Proximity Caves | Spotted B-86 Titan 26986 | -3/Proximity Caves | Destroyed B-86 Titan 27240 | -3/Proximity Caves | Attracted the attention of an 0b10 checkpoint 27434 | -3/Proximity Caves | Discovered exit to Research (range 12) 27468 | -3/Proximity Caves | Entered Research 27468 | -3/Research | Evolved 2 slots: Propulsion x1, Weapon x1 27469 | -3/Research | Identified exit to Armory 27684 | -3/Research | Garrison activated, responded to threat 27779 | -3/Research | Destroyed 8 combat bots 27818 | -3/Research | Identified exit to Quarantine 28164 | -3/Research | Discovered new exit (range 14) 28258 | -3/Research | Found Prototype Processor 28258 | -3/Research | Identified Exp. Terrain Scan Processor 28468 | -3/Research | First assault squad dispatched 28494 | -3/Research | Incoming assault squad redirected 29119 | -3/Research | Destroyed 7 combat bots 29199 | -3/Research | Incoming assault squad redirected 29248 | -3/Research | Incoming assault squad redirected 29395 | -3/Research | Entered Armory 29396 | -3/Armory | Met VL-GR5, who suggested a friendly competition 29397 | -3/Armory | Loaded intel: 16 terminal locations 29398 | -3/Armory | Loaded intel: 2 repair station locations 29473 | -3/Armory | Found Prototype Device 29473 | -3/Armory | Identified Exp. Shield Generator 29507 | -3/Armory | Identified Ghost Barrier 29629 | -3/Armory | Fabricated Arm. Medium Treads (x2) 29968 | -3/Armory | P-80 Master assimilated allied Assassin 8a 29980 | -3/Armory | Lost 3 allies 30222 | -3/Armory | Assisted by bots powering up and referring to "LRC-V3" 30345 | -3/Armory | Fabricated Adv. Heavy Siege Treads (x1) 30380 | -3/Armory | Lost 4 allies 30568 | -3/Armory | Lost 6 allies 30962 | -3/Armory | Repaired Arm. Heavy Treads 31064 | -3/Armory | Incoming investigation squad redirected 31145 | -3/Armory | First assault squad dispatched 31164 | -3/Armory | Incoming assault squad redirected 31220 | -3/Armory | Destroyed 8 combat bots 31338 | -3/Armory | Found Fusion Bomb Launcher 31341 | -3/Armory | Incoming investigation squad redirected 31341 | -3/Armory | Found Fusion Bomb Launcher 31468 | -3/Armory | Fabricated Centrium Heavy Treads? 31661 | -3/Armory | Discovered new exit (range 5) 31670 | -3/Armory | Entered Lab 31670 | -3/Lab | Accompanied by 4 allies 31670 | -3/Lab | Discovered new exit (range 9) 31690 | -3/Lab | Unable to decrypt terminal 31690 | -3/Lab | Opened the door to a hidden lab 31691 | -3/Lab | Gained access to the hidden lab's interior 31692 | -3/Lab | Detected by scanners 31698 | -3/Lab | Confronted by A5 31757 | -3/Lab | Allies destroyed A5 31782 | -3/Lab | Unable to decrypt terminal 31809 | -3/Lab | Found Alien Artifact 31809 | -3/Lab | Identified Transdimensional Reconstructor 31809 | -3/Lab | Warped through subspace 31856 | -3/Lab | Found Alien Artifact 31856 | -3/Lab | Identified Integrated Mediator 31856 | -3/Lab | Installed Integrated Mediator, increased core attachment efficiency 31869 | -3/Lab | Found Alien Artifact 31869 | -3/Lab | Identified Core Regenerator 31869 | -3/Lab | Used Core Regenerator, restored core integrity (+325) 31942 | -3/Lab | Unable to decrypt terminal 31998 | -3/Lab | Unable to decrypt terminal 32002 | -3/Lab | Found Alien Artifact 32002 | -3/Lab | Identified LC Capacitor 32069 | -3/Lab | Found Prototype Energy Gun 32069 | -3/Lab | Identified Tachyon Dispersion Ray 32075 | -3/Lab | Found Prototype Energy Cannon 32075 | -3/Lab | Identified Potential Cannon 32080 | -3/Lab | Found Prototype Protection 32080 | -3/Lab | Identified Hvy. Regenerative Plating 32085 | -3/Lab | Found Prototype Hackware 32284 | -3/Lab | Entered Research 32284 | -2/Research | Accompanied by 2 allies 32284 | -2/Research | Warlord forces began assault on 0b10 32284 | -2/Research | Evolved 2 slots: Propulsion x1, Weapon x1 32394 | -2/Research | Research machine network offline 32551 | -2/Research | Spotted Striker 32574 | -2/Research | Destroyed Striker 32585 | -2/Research | Lost 4 allies 32592 | -2/Research | Build established: Machinist-Executioner 32717 | -2/Research | Discovered new exit (range 15) 32749 | -2/Research | Identified exit to Access 32834 | -2/Research | Entered Access 32834 | -1/Access | Evolved 2 slots: Weapon x2 33032 | -1/Access | Found Thermal Barrier 33418 | -1/Access | Intercept squad dispatched 33445 | -1/Access | Spotted Tracker 33446 | -1/Access | Spotted Tracker 33450 | -1/Access | Destroyed Tracker 33467 | -1/Access | Destroyed Tracker 33483 | -1/Access | Spotted Combat Programmer 33491 | -1/Access | Spotted Combat Programmer 33497 | -1/Access | Destroyed Combat Programmer 33509 | -1/Access | Destroyed Combat Programmer 33537 | -1/Access | Found Prototype Energy Gun 33537 | -1/Access | Identified Immobilizer 33646 | -1/Access | Build established: Scavenger-Executioner 33971 | -1/Access | Garrison activated, responded to threat 34084 | -1/Access | First assault squad dispatched 34117 | -1/Access | Intercept squad dispatched 34142 | -1/Access | Spotted Tracker 34147 | -1/Access | Spotted Tracker 34156 | -1/Access | Destroyed Tracker 34165 | -1/Access | Destroyed Tracker 34208 | -1/Access | Spotted Combat Programmer 34215 | -1/Access | Spotted Combat Programmer 34217 | -1/Access | Destroyed Combat Programmer 34232 | -1/Access | Lost 4 parts (1p1u2w) 34233 | -1/Access | Destroyed Combat Programmer 34254 | -1/Access | Destroyed 12 combat bots 34263 | -1/Access | Identified Quantum Router 34832 | -1/Access | Intercept squad dispatched 34843 | -1/Access | Spotted Tracker 34844 | -1/Access | Spotted Tracker 34845 | -1/Access | Spotted Tracker 34850 | -1/Access | Destroyed Tracker 34850 | -1/Access | Destroyed Tracker 34862 | -1/Access | Spotted Combat Programmer 34866 | -1/Access | System corruption reached 10% 34867 | -1/Access | Destroyed Tracker 34880 | -1/Access | Destroyed Combat Programmer 34894 | -1/Access | Spotted Combat Programmer 34903 | -1/Access | Lost 3 parts (1u2w) 34903 | -1/Access | Spotted Combat Programmer 34944 | -1/Access | High security lockdown imminent 34944 | -1/Access | Destroyed Combat Programmer 34957 | -1/Access | Destroyed Combat Programmer 34978 | -1/Access | Destroyed 10 combat bots 35024 | -1/Access | High security lockdown engaged 35261 | -1/Access | Lost 3 parts (1u2w) 35344 | -1/Access | Spotted Striker 35358 | -1/Access | Released all parts (10) 35383 | -1/Access | Spotted B-99 Colossus 35385 | -1/Access | Lost 7 parts (2p1n1u3w) 35387 | -1/Access | Core integrity fell below 50% 35425 | -1/Access | Intercept squad dispatched 35433 | -1/Access | Spotted Tracker 35433 | -1/Access | Spotted Tracker 35434 | -1/Access | Core integrity fell below 20% 35434 | -1/Access | Spotted Tracker 35435 | -1/Access | Spotted Tracker 35443 | -1/Access | Destroyed by Tracker with Linked Autogun Last Messages --------------- 35359_ P-80 Master unfolds itself. 35359_ M-36 Artificer unfolds itself. 35361_ P-80 Master resets G-73 Enforcer, system corruption cleaned. 35361_ Penetrated by Slug. 35362_ M-36 Artificer repairs B-74 Champion Unknown Impact Weapon. 35363_ P-80 Master resets Striker, system corruption cleaned. 35372_ System corrupted: Energy discharge (-18). 35383_ Knocked back. 35383_ Slug penetrates Wall. 35389_ IOZGFI/HQQ&DA8Y:WXAVXY 35394_ O-32 Director: "IFF HANDSHAKE FAILED. SECURING TERMINAL." 35406_ System corrupted: Matter fused (-10). 35421_ System corrupted: Energy discharge (-27). 35425_ ALERT: Reliable intel has pinpointed LRC-V3, intercept squad en route. Tracker: "THREAT CONFIRMED. DEPLOY COMBAT PROGRAMMER." 35433_ Door malfunctions. Tracker: "THREAT CONFIRMED. DEPLOY COMBAT PROGRAMMER." 35437_ System corrupted: IFF burst signal emitted. 35437_ Tracker Prototype Flight Unit temporarily disabled. Map ----- +----------------------------------------------------+ | ???????????# #???????????????????????????????? | | ???????????# #???????????????????????????????? | | ???????????# #??????#????????????????????????? | | ???????????# #???? #????????????????????????? | | ???????????# #?? #????????????????????????? | | ?????####### # #????????????????????????? | | ?????# / #????????????????????????? | | ?????# # #????????????????????????? | | ?? ### #?? #????????????????????????? | | ? #????###????????????????????????? | | ? #???????????????????????????????? | | ? #???????????????????????????????? | | ?? """"" #???????????????????????????????? | | ?????""""" #???????????????????????????????? | | ??????"""" #???????????????????????????????? | | ?? """"" #???????????????????????????????? | | ? #????##########?????????????????? | | ? #????# ?????????????????? | | ? ##???# ??????????????????? | | ??## #???# ???????????????????? | | ???# #???# """""???????????????????? | | ???# ##### """"""??????????????????? | | ???# Ks """""" ?????????????????? | | ???# ##### """""" ?#?????????????? | | ???# #???# """""" #?????????????? | | ???####+### #???# @ #?????????????? | | ??????????####+####???# #?????????????? | | ??????????????????????# #?????????????? | | ??????????????????????# #?????????????? | | ??????????????????????##############?????????????? | | ?????????????????????????????????????????????????? | | ?????????????????????????????????????????????????? | | ?????????????????????????????????????????????????? | | ?????????????????????????????????????????????????? | | ?????????????????????????????????????????????????? | | ?????????????????????????????????????????????????? | | ?????????????????????????????????????????????????? | | ?????????????????????????????????????????????????? | | ?????????????????????????????????????????????????? | | ?????????????????????????????????????????????????? | | ?????????????????????????????????????????????????? | | ?????????????????????????????????????????????????? | | ?????????????????????????????????????????????????? | | ?????????????????????????????????????????????????? | | ?????????????????????????????????????????????????? | | ?????????????????????????????????????????????????? | | ?????????????????????????????????????????????????? | | ?????????????????????????????????????????????????? | | ?????????????????????????????????????????????????? | | ?????????????????????????????????????????????????? | +----------------------------------------------------+ Best States ------------- Heat Dissipation 105 Coolant Potential 100 Energy Generation 75 Energy Capacity 2325 Matter Stores 300 Matter Capacity 300 Sight Range 16 Robot Scan Range 15 Terrain Scan Density 10 ECM Strength 2 Jamming Range 16 Corruption Block 15 Armor Coverage 600 Resistance: KI 20 Resistance: TH 50 Resistance: EM 75 Core Shielding 20 Power Shielding 90 Weapon Shielding 66 Point Defense Rating 240 Phase Shifting 20 Evasion (%) 60 Recoil Reduction 8 Particle Charging 30 Kinecelleration 40 Offensive Hacking 10 Defensive Hacking 25 Authchip Count 1 Item Schematics ----------------- Huge Storage Unit | -10/Materials | Hacked Lgt. Armor Plating | -10/Mines | Hacked Lgt. Treads | -10/Mines | Hacked Hvy. Ion Engine | -8/Materials | Scanalyzed Arm. Treads | -8/Materials | Hacked Combat Drone Bay | -7/Data Miner | Free Lgt. Regenerative Plating | -7/Data Miner | Free Cld. Aerolev Unit | -7/Data Miner | Free Exp. Targeting Computer | -7/Data Miner | Free Imp. Heavy Laser | -7/Data Miner | Free Arm. Medium Treads | -7/Data Miner | Free Imp. Weapon Cycler | -7/Data Miner | Free Adv. Plasma Cannon | -7/Data Miner | Free Imp. Focal Shield | -7/Data Miner | Free Hyp. Mass Driver | -7/Data Miner | Free Hyp. Gauss Rifle | -6/Factory | Scanalyzed Hvy. Assault Rifle | -6/Extension | Hacked Exp. Heat Sink | -5/Zhirov | Free Assault Drone Bay | -5/Zhirov | Free Exp. Optical Array | -5/Zhirov | Free Imp. Arc Thrower | -5/Zhirov | Free Centrium Heavy Treads | -3/Research | Scanalyzed Enh. Hardcell Cannon | -3/Armory | Hacked Enh. Nova Cannon | -3/Armory | Hacked Robot Schematics ------------------ H-55 Commando | -7/Data Miner | Free L-41 Fighter | -7/Data Miner | Free R-10 Processor | -7/Data Miner | Free B-48 Gladiator | -7/Data Miner | Free G-50 Soldier | -7/Data Miner | Free O-32 Director | -3/Research | Hacked Fabricated ------------ Com. Mass Driver | x1 | -5/Factory | Preloaded Arm. Medium Treads | x2 | -5/Factory X-72 Disruptor | x2 | -5/Factory | Preloaded L-41 Fighter | x3 | -5/Factory Arm. Medium Treads | x2 | -3/Armory Adv. Heavy Siege Treads | x1 | -3/Armory | Preloaded Centrium Heavy Treads | x1 | -3/Armory | Authchip Repaired ---------- Lgt. Treads | 7% | -10/Materials Lgt. Treads | 49% | -10/Materials Lgt. Treads | 2% | -8/Materials Centrium Heavy Treads | 45% | -5/Factory | Broken Centrium Heavy Treads | 32% | -4/Factory | Broken Arm. Heavy Treads | 31% | -3/Armory Studied --------- Lgt. Treads | -8/Materials | Hacked Alien Tech Used ----------------- Integrated Dissipator Transdimensional Reconstructor Integrated Mediator Core Regenerator LC Capacitor Achievements -------------- Hard Hitter I Have Friends Everywhere Challenges ------------ None Game ------ Seed RapidNetworkedGravjet Manual? 0 Play Time 04:49:42 Cumulative 397.1 hours Start 2025.12.08 @ 11:11:55 End 2025.12.08 @ 16:36:31 Sessions 3 Manual Loads 0 Difficulty Rogue Special Mode None Game No. 402 Rogue 398 Adventurer 3 Explorer 1 Win Type - Total 5 Types 4/0/1/0/0/0/0/0/0/0 Lore% 86 Gallery% 80 Achievement% 68 Wizard Run 0 Options --------- Layout 0 ASCII 0 Keyboard 0 Movement Mouse Keybinds 0 Fullscreen 2 Font 18/SmallcapsGlow Map View 76x50 Zoom Use 0% Tactical HUD 1 Map Filters NONE Filters NONE Steam 1 RUN: 89db0c24-bff3-4ce9-aaf9-f826ec36aa7f